Cogmind - Beta 10 X2 @@@ ROGUE MODE // 2020.09.05 @ 02:25:27 Player: Nikolayag Result: Establishing 0b11! Performance ------------- Evolutions (9) 4500 Regions Visited (40) 8000 Robots Destroyed (698) 3490 Value Destroyed (33854) 33854 Prototype IDs (57) 1140 Alien Tech Used (1) 200 Bonus (65237) 65237 TOTAL SCORE: 116421 Bonus ------- Triggered High Security 1000 Triggered Max Security 1000 High Alert Combat Kills 22981 Follower Combat Kills 14415 Entered Garrisons 400 Used RIF Installer 1000 Met Data Miner 300 Destroyed Z-Imprinter 1000 Exposed GOLEM Chamber 500 Met Zhirov 300 Met Warlord at Base 500 MAIN.C Attacked Warlord 500 Met Warlord at Research 2000 Destroyed MAIN.C Guards 500 Met MAIN.C 5000 Destroyed MAIN.C Shell 5000 Destroyed MAIN.C 10000 Win 3000 Friendly Fire -4159 Cogmind --------- Core Integrity 1460/1600 Matter 300/300 Energy 2402/2700 System Corruption 0% Temperature Cool (145) Movement Hovering (22) Location 0b11 Command Parts ------- > --- POWER (2) -------- Vortex Chain Reactor > --- PROPULSION (5) --- Combat Linear Gravjet Combat Linear Gravjet Combat Linear Gravjet Combat Linear Gravjet Combat Linear Gravjet > --- UTILITY (16) ----- Large Storage Unit Large Storage Unit Experimental Energy Well Zionite Biocell Zionite Metafield Generator Long-range Sensor Array Advanced Signal Interpreter Tactical Coordination Suite Powered Armor Experimental Powered Armor Experimental Powered Armor AEGIS Remote Shield Assault Drone Bay (2/2) Assault Drone Bay (2/2) > --- WEAPON (2) ------- Spread Laser CR-A16's Behemoth Slayer > --- INVENTORY (16) --- Cooled Antigrav System Large Storage Unit Improved Matter Compressor (300) Improved System Backup Module Mapping Drone Bay (3/3) Assault Drone Bay (2/2) Bomb Factory No. 2 Subatomic Replicator Peak State ------------ > --- POWER ------------ Vortex Chain Reactor > --- PROPULSION ------- Cooled Antigrav System Combat Linear Gravjet Combat Linear Gravjet Combat Linear Gravjet Combat Linear Gravjet > --- UTILITY ---------- Large Storage Unit Large Storage Unit Experimental Energy Well Zionite Biocell Zionite Metafield Generator Long-range Sensor Array Advanced Signal Interpreter Tactical Coordination Suite Experimental Powered Armor AEGIS Remote Shield Assault Drone Bay Assault Drone Bay Assault Drone Bay > --- WEAPON ----------- Spread Laser CR-A16's Behemoth Slayer > --- INVENTORY -------- Combat Linear Gravjet Large Storage Unit Improved Matter Compressor Powered Armor Improved System Backup Module Mapping Drone Bay Bomb Factory No. 2 Subatomic Replicator [Rating: 187] Favorites ----------- Power Vortex Chain Reactor Engine Heavy Ion Engine Power Core Backup Power VII Reactor Vortex Chain Reactor Propulsion Combat Linear Gravjet Treads Light Treads Wheel Wheel Hover Unit Combat Linear Gravjet Flight Unit Improved Flight Unit Utility Large Storage Unit Device Long-range Sensor Array Storage Large Storage Unit Processor Advanced Signal Interpreter Hackware Quantum Router Protection Powered Armor Weapon CR-A16's Behemoth Slayer Energy Gun Spread Laser Energy Cannon Advanced Beam Cannon Ballistic Gun Autogun Ballistic Cannon Improved Light Cannon Launcher Mini Grenade Launcher Slashing Weapon Makeshift Sword Piercing Weapon CR-A16's Behemoth Slayer Special Melee Weapon Advanced Datajack Build | -11 -10 -9 -9 -9 -8 -8 -7 -7 -7 -7 -6 -6 -6 -6 -6 -6 -5 -5 -5 -5 -5 -5 -5 -4 -4 -4 -4 -4 -4 -4 -4 -4 -3 -3 -3 -3 -2 -2 -1 -1 ------- Run | Scr Mat Mat Min Exi Min Mat Fac Low Low Dat Pro Fac Low Low Zio Dee Pro Fac Was Fac Upp Upp War Pro Fac Was Fac Gar Fac Upp Upp Zhi Pro Res Tes Gar Res Qua Acc Com Slots Evolved 18 | . . 2 . . . 2 2 . . . . 2 . . . . . 2 . . . . . . 2 . . . . . . . . 2 . . 2 . 2 . Power 1 | . . . . . . . . . . . . 1 . . . . . . . . . . . . . . . . . . . . . . . . . . . . Propulsion 3 | . . . . . . 1 1 . . . . . . . . . . . . . . . . . . . . . . . . . . 1 . . . . . . Utility 14 | . . 2 . . . 1 1 . . . . 1 . . . . . 2 . . . . . . 2 . . . . . . . . 1 . . 2 . 2 . Weapon . | . . . . . . . . . . . . . . . . . . . . . . . . . . . . . . . . . . . . . . . . . Parts Attached 325 | 7 6 36 2 1 . 20 18 . 3 . . 9 . . 1 37 . 9 . 16 . . 11 5 29 . 9 1 3 2 2 7 4 12 2 1 6 . 58 8 Power 28 | 1 . 4 1 . . . 3 . . . . 2 . . . 6 . 1 . . . . . . 5 . . . 2 . . 2 . 1 . . . . . . Engine 7 | 1 . 4 1 . . . . . . . . 1 . . . . . . . . . . . . . . . . . . . . . . . . . . . . Core 5 | . . . . . . . 3 . . . . 1 . . . 1 . . . . . . . . . . . . . . . . . . . . . . . . Reactor 16 | . . . . . . . . . . . . . . . . 5 . 1 . . . . . . 5 . . . 2 . . 2 . 1 . . . . . . Propulsion 67 | 2 3 7 . 1 . 8 7 . 1 . . 3 . . . 12 . 1 . 6 . . 4 . 4 . . . . . . . . 1 . . 2 . 3 2 Treads 15 | 1 2 4 . 1 . 7 . . . . . . . . . . . . . . . . . . . . . . . . . . . . . . . . . . Leg . | . . . . . . . . . . . . . . . . . . . . . . . . . . . . . . . . . . . . . . . . . Wheel 6 | 1 1 3 . . . . . . . . . . . . . . . . . . . . . . . . . . . . . . . . . . 1 . . . Hover 33 | . . . . . . . . . . . . . . . . 11 . 1 . 6 . . 4 . 4 . . . . . . . . 1 . . 1 . 3 2 Flight 13 | . . . . . . 1 7 . 1 . . 3 . . . 1 . . . . . . . . . . . . . . . . . . . . . . . . Utility 192 | 2 . 12 . . . 3 8 . . . . 3 . . 1 18 . 7 . 10 . . 7 5 20 . 9 1 1 2 2 5 4 10 2 1 4 . 49 6 Device 124 | . . 3 . . . 1 1 . . . . 1 . . . 13 . 4 . 7 . . 6 4 13 . 8 1 . 2 2 4 4 9 2 1 2 . 34 2 Storage 30 | 2 . 2 . . . 1 2 . . . . . . . 1 4 . 2 . 2 . . 1 . 4 . . . . . . . . . . . 1 . 7 1 Processor 2 | . . . . . . . 1 . . . . . . . . . . . . . . . . . . . . . . . . . . . . . . . 1 . Hackware 16 | . . . . . . . 3 . . . . 2 . . . . . 1 . 1 . . . . 3 . 1 . 1 . . . . . . . . . 4 . Protection 20 | . . 7 . . . 1 1 . . . . . . . . 1 . . . . . . . 1 . . . . . . . 1 . 1 . . 1 . 3 3 Artifact . | . . . . . . . . . . . . . . . . . . . . . . . . . . . . . . . . . . . . . . . . . Weapon 38 | 2 3 13 1 . . 9 . . 2 . . 1 . . . 1 . . . . . . . . . . . . . . . . . . . . . . 6 . Energy Gun 8 | 1 1 1 . . . 2 . . . . . . . . . . . . . . . . . . . . . . . . . . . . . . . . 3 . Energy Cannon 10 | . . 6 . . . 4 . . . . . . . . . . . . . . . . . . . . . . . . . . . . . . . . . . Ballistic Gun 10 | 1 2 5 1 . . . . . . . . . . . . . . . . . . . . . . . . . . . . . . . . . . . 1 . Ballistic Cannon 2 | . . 1 . . . . . . . . . . . . . . . . . . . . . . . . . . . . . . . . . . . . 1 . Launcher 2 | . . . . . . . . . 1 . . 1 . . . . . . . . . . . . . . . . . . . . . . . . . . . . Special Weapon . | . . . . . . . . . . . . . . . . . . . . . . . . . . . . . . . . . . . . . . . . . Impact Weapon . | . . . . . . . . . . . . . . . . . . . . . . . . . . . . . . . . . . . . . . . . . Slashing Weapon 3 | . . . . . . 3 . . . . . . . . . . . . . . . . . . . . . . . . . . . . . . . . . . Piercing Weapon 2 | . . . . . . . . . 1 . . . . . . 1 . . . . . . . . . . . . . . . . . . . . . . . . Special Melee Weapon 1 | . . . . . . . . . . . . . . . . . . . . . . . . . . . . . . . . . . . . . . . 1 . Unidentified Prototypes 30 | . . 2 . . . 2 1 . . . . 1 . . . 8 . . . 1 . . 3 . . . . . 1 . . 5 . 1 1 . . . 2 2 Parts Lost 18 | . 4 8 . . . 1 . . . 1 . . . . . . . . . 1 . . . . 1 . . . . . . . . . . . 1 . 1 . Power 1 | . 1 . . . . . . . . . . . . . . . . . . . . . . . . . . . . . . . . . . . . . . . Propulsion 5 | . . 3 . . . 1 . . . 1 . . . . . . . . . . . . . . . . . . . . . . . . . . . . . . Utility 7 | . . 4 . . . . . . . . . . . . . . . . . 1 . . . . . . . . . . . . . . . . 1 . 1 . Weapon 5 | . 3 1 . . . . . . . . . . . . . . . . . . . . . . 1 . . . . . . . . . . . . . . . Highest Loss Streak 4 | . 4 2 . . . 1 . . . 1 . . . . . . . . . 1 . . . . 1 . . . . . . . . . . . 1 . 1 . Average Slot Usage (%) 92 | . 92 95 94 100 100 99 88 92 96 99 92 94 93 93 93 93 93 93 94 94 94 94 93 94 88 89 88 89 89 89 89 88 89 84 85 85 85 86 91 84 Engine 1 | . 11 10 11 11 11 9 . . . . . . . . . . . . . . . . . . . . . . . . . . . . . . . . . . Reactor 4 | . . . . . . . . . . . . . . . . 6 13 10 11 11 11 11 11 11 7 10 10 10 10 10 10 10 10 4 4 4 4 4 4 4 Treads 2 | . 15 9 22 22 22 26 1 . . . . . . . . . . . . . . . . . . . . . . . . . . . . . . . . . Hover 17 | . . . . . . . . . . . . . . . . 23 26 23 23 23 23 23 22 23 21 21 21 21 21 21 21 21 21 23 23 23 20 21 20 20 Flight 1 | . . . . . . . 26 30 30 29 23 22 20 20 20 1 . . . . . . . . . . . . . . . . . . . . . . . . Device 11 | . . 7 11 11 11 9 6 7 7 7 7 6 6 6 6 6 6 11 11 11 11 11 10 10 10 10 9 10 10 10 10 9 10 13 14 14 20 21 12 27 Storage 16 | . 28 22 22 22 22 26 9 7 7 7 7 6 6 6 12 8 13 11 11 11 11 11 11 11 11 15 15 15 15 15 15 15 15 14 14 14 13 13 19 16 Processor 5 | . . . . . . . 6 7 7 7 7 6 6 6 6 6 6 5 5 5 5 5 5 5 5 5 5 5 5 5 5 5 5 4 4 4 4 4 7 4 Hackware 17 | . . . . . . . 19 23 23 23 23 25 26 26 20 19 13 16 17 17 17 17 17 17 23 21 21 21 21 21 21 21 21 19 19 19 13 13 19 . Protection 1 | . . 12 11 11 11 9 . . . . . . . . . . . . . . . . . . . . . . . . . . . . . . 3 4 . 5 Energy Gun 1 | . 5 . . . . . . . . . . . . . . . . . . . . . . . . . . . . . . . . . . . . . 3 4 Ballistic Gun 1 | . 18 10 16 22 22 1 . . . . . . . . . . . . . . . . . . . . . . . . . . . . . . . . . . Launcher 1 | . . . . . . . . . 3 7 7 5 6 6 6 6 6 5 5 5 5 5 5 5 2 . . . . . . . . . . . . . . . Piercing Weapon 3 | . . . . . . . . . 4 7 7 6 6 6 6 6 6 5 5 5 5 5 5 5 5 5 5 5 5 5 5 5 5 4 4 4 4 4 4 4 Naked Turns . | . . . . . . . . . . . . . . . . . . . . . . . . . . . . . . . . . . . . . . . . . Heaviest Build 175 | 16 16 88 82 82 82 121 119 20 21 21 21 27 21 21 29 55 52 70 70 85 85 85 86 86 121 121 133 120 120 123 123 110 123 154 149 149 154 148 175 155 Greatest Support 160 | 20 40 40 40 40 40 63 63 20 27 27 21 32 32 32 32 94 94 94 94 97 91 91 98 98 128 128 128 128 128 128 128 128 128 160 160 160 160 160 160 160 Greatest Overweight (x) 8 | 1 1 8 2 2 2 3 1 . 6 . . . . . . . . . . . . . 1 . . . 1 . . . . . . . . . 1 . 1 1 Average Overweight (x) . | . . 2 1 2 2 1 . . . . . . . . . . . . . . . . . . . . . . . . . . . . . . . . . . Largest Inventory Capacity 36 | 8 8 20 20 20 20 28 36 8 8 8 8 8 8 8 12 12 12 16 16 18 18 18 18 18 26 26 26 26 26 26 26 26 26 26 26 26 26 24 30 22 Average Capacity 23 | 5 8 16 20 20 20 27 10 8 8 8 8 8 8 8 11 9 12 13 16 16 18 18 18 18 19 26 26 26 26 26 26 26 26 26 26 26 24 24 29 16 Most Carried 30 | 4 6 20 20 20 20 28 30 8 8 8 8 8 8 8 10 12 12 16 16 18 18 18 18 18 22 22 26 26 26 26 26 26 26 26 26 26 26 24 30 16 Average Carried 22 | 2 4 14 19 19 20 26 9 8 8 7 8 7 8 8 9 7 11 12 16 16 17 18 17 18 18 22 24 25 25 25 25 26 25 23 26 25 23 23 28 8 Final Capacity 30 | 8 8 20 20 20 20 28 8 8 8 8 8 8 8 8 12 12 12 16 16 18 18 18 18 18 26 26 26 26 26 26 26 26 26 26 26 26 24 24 30 16 Final Carried 30 | 4 5 20 19 20 20 28 8 8 8 8 8 8 8 8 10 12 12 16 16 18 18 18 18 18 22 22 26 26 26 26 26 26 25 26 26 26 24 24 30 10 Class Distribution -------------------- 61% | Wizard-Mutant 16% | Hacker-Mutant 8% | Hauler-Mutant 6% | Hacker-Sprinter Dominant Class ---------------- Mutant | -10/Materials Hauler-Mutant | -9/Materials Hauler-Mutant | -9/Mines Hauler-Mutant | -9/Exiles Hauler-Mutant | -8/Mines Hauler-Mutant | -8/Materials Hacker-Sprinter | -7/Factory Hacker-Sprinter | -7/Lower Caves Hacker-Sprinter | -7/Lower Caves Hacker-Sprinter | -7/Data Miner Hacker-Sprinter | -6/Proximity Caves Hacker-Sprinter | -6/Factory Hacker-Sprinter | -6/Lower Caves Hacker-Sprinter | -6/Lower Caves Hacker-Sprinter | -6/Zion Hacker-Mutant | -6/Deep Caves Hacker-Mutant | -5/Proximity Caves Hacker-Mutant | -5/Factory Hacker-Mutant | -5/Waste Hacker-Mutant | -5/Factory Hacker-Mutant | -5/Upper Caves Hacker-Mutant | -5/Upper Caves Hacker-Mutant | -5/Warlord Hacker-Mutant | -4/Proximity Caves Wizard-Mutant | -4/Factory Wizard-Mutant | -4/Waste Wizard-Mutant | -4/Factory Wizard-Mutant | -4/Garrison Wizard-Mutant | -4/Factory Wizard-Mutant | -4/Upper Caves Wizard-Mutant | -4/Upper Caves Wizard-Mutant | -4/Zhirov Wizard-Mutant | -3/Proximity Caves Wizard-Mutant | -3/Research Wizard-Mutant | -3/Testing Wizard-Mutant | -3/Garrison Machinist-Mutant | -2/Research Machinist-Mutant | -2/Quarantine Wizard-Mutant | -1/Access Machinist-Sprinter | -1/Command Resources | -11 -10 -9 -9 -9 -8 -8 -7 -7 -7 -7 -6 -6 -6 -6 -6 -6 -5 -5 -5 -5 -5 -5 -5 -4 -4 -4 -4 -4 -4 -4 -4 -4 -3 -3 -3 -3 -2 -2 -1 -1 ----------- Run | Scr Mat Mat Min Exi Min Mat Fac Low Low Dat Pro Fac Low Low Zio Dee Pro Fac Was Fac Upp Upp War Pro Fac Was Fac Gar Fac Upp Upp Zhi Pro Res Tes Gar Res Qua Acc Com Matter Collected 19348 | 152 137 894 22 . . 272 59 . 151 . . 45 45 24 . 766 . 80 . 470 2 8 . 155 275 . 168 . 29 81 28 . 134 120 20 10 60 . 14878 263 Remotely 13355 | . . . . . . . . . . . . . . . . . . . . . . . . . . . . . . . . . . . . . . . 13355 . Salvage Created 37548 | 59 227 1915 . . 17 1378 59 . 25 22 . 45 50 . . 155 . 461 . 220 48 . 154 . 447 . 207 168 188 . 98 97 . 105 143 107 401 30 30413 309 Parts 830 | 2 14 95 . . 1 88 2 . 2 2 . 8 5 . . 1 . 17 . 11 5 . 5 . 24 . 12 11 7 . 7 3 . 3 6 8 13 . 456 22 Haulers Intercepted 17 | . . 6 . . . 3 . . . . . . . . . . . 4 . . . . . . . . . . . . . . . . . . 3 . 1 . Recyclers Shooed 8 | . . 2 . . . . . . . . . . . . . . . . . . . . . . 1 . . . . . . . . . . . . . 5 . Parts Field Recycled . | . . . . . . . . . . . . . . . . . . . . . . . . . . . . . . . . . . . . . . . . . Retrieved Matter . | . . . . . . . . . . . . . . . . . . . . . . . . . . . . . . . . . . . . . . . . . Parts Self-Destructed 135 | . . . . . . . . . . . . . 1 . . . 25 . . . 19 29 . 17 . . . . . 21 13 3 7 . . . . . . . Prevented 5 | . . . . . . . . . . . . . . . . . . . . . . 1 4 . . . . . . . . . . . . . . . . . Kills | -11 -10 -9 -9 -9 -8 -8 -7 -7 -7 -7 -6 -6 -6 -6 -6 -6 -5 -5 -5 -5 -5 -5 -5 -4 -4 -4 -4 -4 -4 -4 -4 -4 -3 -3 -3 -3 -2 -2 -1 -1 ------- Run | Scr Mat Mat Min Exi Min Mat Fac Low Low Dat Pro Fac Low Low Zio Dee Pro Fac Was Fac Upp Upp War Pro Fac Was Fac Gar Fac Upp Upp Zhi Pro Res Tes Gar Res Qua Acc Com Combat Hostiles Destroyed 477 | . 6 31 . . 1 22 . . 1 . . . 4 . . 3 . . . . 2 . . . 2 . 2 2 1 . 1 . . 1 2 1 1 . 392 2 Melee 32 | . . 2 . . . . . . 1 . . . . . . 1 . . . . . . . . . . 1 1 1 . . . . 1 2 . 1 . 20 1 Guns 107 | . 6 11 . . 1 1 . . . . . . . . . . . . . . . . . . . . . . . . . . . . . . . . 88 . Cannons 36 | . . 15 . . . 21 . . . . . . . . . . . . . . . . . . . . . . . . . . . . . . . . . . AOE 283 | . . 2 . . . . . . . . . . 4 . . 1 . . . . 2 . . . . . . . . . . . . . . . . . 274 . Classes Destroyed 26 | 1 3 6 . . . 2 . . . . . . . . . 2 . . . . 1 . 1 . 1 . . 1 . . . . . . 1 . . . 7 . Worker 11 | . 1 2 . . . . . . . . . . . . . . . 1 . 1 . . . . 2 . 1 . 1 . . . . . . . . . 1 1 Builder 6 | . . . . . . 2 . . . . . 1 . . . . . . . 1 . . . . 1 . . . . . . . . . . . . . 1 . Tunneler 1 | . . 1 . . . . . . . . . . . . . . . . . . . . . . . . . . . . . . . . . . . . . . Hauler 17 | . . 6 . . . 3 . . . . . . . . . . . 4 . . . . . . . . . . . . . . . . . . 3 . 1 . Recycler 15 | 1 . 4 . . . 1 1 . . . . . . . . . . . . 1 . . . . 1 . . . 1 . . . . . . . . . 5 . Carrier 106 | . . . . . . . . . . . . . . . . . . . . . . . . . . . . . . . . . . . . . . . 106 . Minesweeper 1 | . . . . . . . . . . . . . . . . . . . . . 1 . . . . . . . . . . . . . . . . . . . Mechanic 25 | . . . . . . . . . . . . . . . . . . . . . . . . . . . . . . . . . . . . . . . 25 . Operator 17 | . . 1 . . . 4 . . . . . 1 . . . . . 2 . 2 . . . . 2 . 1 . . . . . . . . . . 1 3 . Watcher 10 | . . 3 . . . 1 . . . . . . . . . . . . . 2 . . . . . . 1 . . . . . . . . . . . 3 . Swarmer 26 | . 2 7 . . 1 3 . . 1 . . . 4 . . . . . . . 2 . . . . . 1 . . . . . . . . . . . 5 . Saboteur 22 | . . . . . . . . . . . . . . . . . . . . . . . . . . . . . . . . . . . . . . . 22 . Grunt 102 | . 4 17 . . . 10 . . . . . . . . . . . . . . . . . . . . . . 1 . . . . . . . . . 70 . Brawler 14 | . . 1 . . . 1 . . . . . . . . . . . . . . . . . . . . . . . . . . . . . . . . 12 . Duelist 16 | . . . . . . 2 . . . . . . . . . . . . . . . . . . . . . . . . . . . . . . . . 14 . Protector 23 | . . . . . . . . . . . . . . . . . . . . . . . . . . . . . . . . . . . . . . . 23 . Sentry 17 | . . 6 . . . 6 . . . . . . . . . . . . . . . . . . . . . . . . . . . 1 . . . . 4 . Hunter 25 | . . . . . . . . . . . . . . . . . . . . . . . . . . . . . . . . . . . 2 . 1 . 22 . Programmer 62 | . . . . . . . . . . . . . . . . . . . . . . . . . . . . 1 . . . . . . . . . . 61 . Behemoth 11 | . . . . . . . . . . . . . . . . . . . . . . . . . 2 . 1 1 . . 1 . . . . 1 . . 4 1 Investigator 1 | . . . . . . . . . . . . . . . . . . . . . . . . . . . . . . . . . . . . . . . 1 . Striker 38 | . . . . . . . . . . . . . . . . . . . . . . . . . . . . . . . . . . . . . . . 38 . Executioner 36 | . . . . . . . . . . . . . . . . . . . . . . . . . . . . . . . . . . . . . . . 36 . Demented 3 | . . . . . . . . . . . . . . . . . . . . . . . 3 . . . . . . . . . . . . . . . . . Assembled 1 | . . . . . . . . . . . . . . . . 1 . . . . . . . . . . . . . . . . . . . . . . . . Golem 90 | . . . . . . . . . . . . . . . . 2 . . . . . . . . . . . . . . . . . . . . . . 88 . Best Kill Streak 109 | 1 7 7 . . 1 5 1 . 1 1 . 2 4 . . 1 . 1 . 2 2 . . . 2 . 2 2 1 . 1 . . 1 2 1 2 . 109 1 Combat Bots Only 77 | . 6 4 . . 1 5 . . 1 . . . 4 . . 1 . . . . 2 . . . 1 . 1 2 1 . 1 . . 1 2 1 1 . 77 1 Max Kills in Single Turn 107 | 1 1 2 . . 1 1 1 . 1 1 . 1 2 . . 1 . 1 . 1 2 . 1 . 1 . 1 1 1 . 1 . . 1 1 1 1 1 107 1 Gunslinging . | . . . . . . . . . . . . . . . . . . . . . . . . . . . . . . . . . . . . . . . . . Exploded 75 | . . 1 . . . . . . . . . . 2 . . 1 . . . . 2 . . . . . . . . . . . . . . . . . 75 . Melee 1 | . . 1 . . . . . . 1 . . . . . . 1 . . . . . . . . . . 1 1 1 . . . . 1 1 . 1 . 1 1 Uniques/NPCs Destroyed 3 | . . . . . . . . . . 1 . . . . . 1 . . . . . . . . . . . . . . . . . . . . . . . 1 Data Miner (-7/Data Miner) Z-Imprinter (-6/Deep Caves) MAIN.C Shell (-1/Command) MAIN.C (-1/Command) Combat | -11 -10 -9 -9 -9 -8 -8 -7 -7 -7 -7 -6 -6 -6 -6 -6 -6 -5 -5 -5 -5 -5 -5 -5 -4 -4 -4 -4 -4 -4 -4 -4 -4 -3 -3 -3 -3 -2 -2 -1 -1 -------- Run | Scr Mat Mat Min Exi Min Mat Fac Low Low Dat Pro Fac Low Low Zio Dee Pro Fac Was Fac Upp Upp War Pro Fac Was Fac Gar Fac Upp Upp Zhi Pro Res Tes Gar Res Qua Acc Com Damage Taken 7895 | 32 574 1450 . . 8 920 27 . 75 50 . 8 15 . . 101 45 144 . 336 12 . 55 . 399 . 122 337 155 71 17 . 30 157 186 56 109 9 1887 508 Core 1040 | . 102 214 . . . 145 27 . 41 . . . . . . . 13 69 . 51 . . . . 42 . 12 100 16 24 . . . . 44 . . . 130 10 Absorbed by Shields 1876 | . . . . . . . . . . . . . . . . . . . . . . . . . . . 23 . . . . . . 151 175 52 30 9 1305 131 Core Remaining (%) 84 | 100 59 . . . 46 73 . . . . 90 . . . . . 98 . . . . . . 88 . . . . . . . . 83 . . 96 . 100 . 91 Volleys Fired 1369 | 7 15 139 1 . 1 77 . . . . . . 6 . . 5 . . . . 1 . . . . . . . . . . . . . . . . . 1115 2 Largest 2 | 1 2 2 1 . 2 2 . . . . . . 1 . . 1 . . . . 1 . . . . . . . . . . . . . . . . . 1 1 Hottest 136 | 40 60 126 23 . 46 136 . . . . . . 30 . . 30 . . . . 30 . . . . . . . . . . . . . . . . . 65 65 Shots Fired 1554 | 7 30 235 1 . 2 150 . . . . . . 6 . . 5 . . . . 1 . . . . . . . . . . . . . . . . . 1115 2 Gun 1316 | 7 30 147 1 . 2 12 . . . . . . . . . . . . . . . . . . . . . . . . . . . . . . . . 1115 2 Cannon 226 | . . 88 . . . 138 . . . . . . . . . . . . . . . . . . . . . . . . . . . . . . . . . . Launcher 12 | . . . . . . . . . . . . . 6 . . 5 . . . . 1 . . . . . . . . . . . . . . . . . . . Special . | . . . . . . . . . . . . . . . . . . . . . . . . . . . . . . . . . . . . . . . . . Kinetic 211 | . 29 169 1 . 2 10 . . . . . . . . . . . . . . . . . . . . . . . . . . . . . . . . . . Thermal 1255 | . . . . . . 138 . . . . . . . . . . . . . . . . . . . . . . . . . . . . . . . . 1115 2 Explosive 12 | . . . . . . . . . . . . . 6 . . 5 . . . . 1 . . . . . . . . . . . . . . . . . . . Electromagnetic 76 | 7 1 66 . . . 2 . . . . . . . . . . . . . . . . . . . . . . . . . . . . . . . . . . Robot Hit Streak 77 | 2 9 13 2 . 3 12 . . . . . . 2 . . . . . . . . . . . . . . . . . . . . . . . . . 77 . Robot Miss Streak 7 | 2 1 2 . . 1 2 . . . . . . 2 . . . . . . . . . . . . . . . . . . . . . . . . . 7 . Penetration Max . | . . . . . . . . . . . . . . . . . . . . . . . . . . . . . . . . . . . . . . . . . Secondary Targets 5 | . 2 2 . . 1 . . . . . . . . . . . . . . . . . . . . . . . . . . . . . . . . . . . Max Gunslinging Chain 1 | . 1 1 . . 1 . . . . . . . . . . . . . . . . . . . . . . . . . . . . . . . . . . . Shots Hit Robots 1539 | 4 24 160 1 . 1 104 1 . 1 1 . 2 3 . . 6 1 11 . 12 1 . 4 . 15 . 7 2 3 . 1 1 . 8 6 1 13 3 1128 14 Core Hits 5903 | 1 13 69 . . 1 46 1 . 1 1 . 2 6 . . 10 . 6 . 6 4 . 3 . 6 . 3 1 2 . . . . 3 3 . 4 1 5704 6 Critical Hits 56 | . . 1 . . . 14 . . . . . . . . . . . 1 . 3 . . 1 . 1 . 2 . . . . . . 2 1 . 7 . 23 . Critical Kills 21 | . . . . . . 3 . . . . . . . . . . . . . . . . 1 . 1 . 1 . . . . . . 1 1 . 2 . 11 . Critical Parts Destroyed 29 | . . 1 . . . 11 . . . . . . . . . . . . . 2 . . . . . . 1 . . . . . . 1 . . 4 . 9 . Melee Attacks 832 | . . . . . . 20 26 2 26 11 18 41 19 . 29 49 4 81 . 65 1 4 11 1 42 . 25 2 15 3 1 1 13 25 13 6 29 18 181 50 Impact . | . . . . . . . . . . . . . . . . . . . . . . . . . . . . . . . . . . . . . . . . . Slashing 65 | . . . . . . 20 26 2 17 . . . . . . . . . . . . . . . . . . . . . . . . . . . . . . . Piercing 755 | . . . . . . . . . 9 11 18 41 19 . 29 49 4 81 . 65 1 4 11 1 42 . 25 2 15 3 1 1 13 25 13 6 29 18 169 50 Sneak Attacks 68 | . . . . . . 2 1 . . 1 . 2 1 . . . . 7 . 8 1 . 4 . 5 . 2 . 2 . 1 . . 1 1 1 3 2 23 . Combat Hostiles 5 | . . . . . . . . . . . . . . . . . . . . . . . . . . . 1 . . . 1 . . . 1 1 . . 1 . Follow-up Attacks . | . . . . . . . . . . . . . . . . . . . . . . . . . . . . . . . . . . . . . . . . . Damage Inflicted 142425 | 125 208 3219 13 . 13 2358 106 . 28 76 . 174 492 . . 423 35 1458 . 1648 295 . 688 . 1258 . 493 63 410 . . . . 553 374 . 1085 466 125536 828 Guns 24083 | 52 208 1345 13 . 13 128 . . . . . . . . . . . . . . . . . . . . . . . . . . . . . . . . 22324 . Cannons 3477 | . . 1564 . . . 1913 . . . . . . . . . . . . . . . . . . . . . . . . . . . . . . . . . . Explosions 98905 | 73 . 295 . . . . . . . . . . 420 . . 221 . . . . 158 . . . . . . . . . . . . . . . . . 97632 106 Melee 15944 | . . . . . . 317 106 . 28 76 . 174 72 . . 202 35 1458 . 1648 137 . 687 . 1258 . 493 63 410 . . . . 553 374 . 1085 466 5580 722 Ramming 16 | . . 15 . . . . . . . . . . . . . . . . . . . . 1 . . . . . . . . . . . . . . . . . Kinetic 1978 | . 193 1650 13 . 13 109 . . . . . . . . . . . . . . . . . . . . . . . . . . . . . . . . . . Thermal 31813 | 73 . 295 . . . 1913 . . . . . . . . . . . . . . . . . . . . . . . . . . . . . . . . 29532 . Explosive 750 | . . . . . . . . . . . . . 420 . . 66 . . . . 158 . . . . . . . . . . . . . . . . . . 106 Electromagnetic 91924 | 52 15 1259 . . . 19 . . . . . . . . . 155 . . . . . . . . . . . . . . . . . . . . . . 90424 . Impact . | . . . . . . . . . . . . . . . . . . . . . . . . . . . . . . . . . . . . . . . . . Slashing 423 | . . . . . . 317 106 . . . . . . . . . . . . . . . . . . . . . . . . . . . . . . . . . Piercing 15521 | . . . . . . . . . 28 76 . 174 72 . . 202 35 1458 . 1648 137 . 687 . 1258 . 493 63 410 . . . . 553 374 . 1085 466 5580 722 Highest Corruption 8 | . 1 . . . . . . . . . . . . . . . . . . 1 1 1 1 . . 8 8 8 8 8 8 8 8 . . . 2 2 4 . Average Corruption 5 | . 1 . . . . . . . . . . . . . . . . . . 1 1 1 1 . . 8 8 8 8 8 8 8 8 . . . 2 2 2 . Corruption Purged 8 | . . . . . . . . . . . . . . . . . . . . . . . . . . . . . . . . . . . . . . . 8 . Effects 102 | . . . . . . . . . . . . . . . . . . . . 1 1 2 . . . . 39 2 19 7 2 2 7 . . . 3 2 15 . Message Errors 25 | . . . . . . . . . . . . . . . . . . . . . 1 . . . . . 12 . 5 3 . . 1 . . . 1 . 2 . Matter Fused 22 | . . . . . . . . . . . . . . . . . . . . . . . . . . . 9 1 6 1 . . 2 . . . . . 3 . Heat Flow Errors 10 | . . . . . . . . . . . . . . . . . . . . . . . . . . . 5 . 1 1 1 1 . . . . . . 1 . Energy Discharges 14 | . . . . . . . . . . . . . . . . . . . . 1 . 2 . . . . 3 1 . . . . 1 . . . 1 . 5 . Data Loss (minor) 18 | . . . . . . . . . . . . . . . . . . . . . . . . . . . 4 . 5 2 . 1 1 . . . 1 1 3 . Data Loss (major) 5 | . . . . . . . . . . . . . . . . . . . . . . . . . . . 3 . 1 . 1 . . . . . . . . . Targeting Errors 8 | . . . . . . . . . . . . . . . . . . . . . . . . . . . 3 . 1 . . . 2 . . . . 1 1 . Overload Shots . | . . . . . . . . . . . . . . . . . . . . . . . . . . . . . . . . . . . . . . . . . Overflow Damage 6417 | 2 . 86 . . . 36 . . . . . . 21 . . 16 . 271 . 318 . . 119 . 383 . 169 . 143 . . . . . . . 34 123 4696 . Projectiles 118 | . . 82 . . . 36 . . . . . . . . . . . . . . . . . . . . . . . . . . . . . . . . . . Explosions 4592 | 2 . 4 . . . . . . . . . . 8 . . 16 . . . . . . . . . . . . . . . . . . . . . . 4562 . Melee 1707 | . . . . . . . . . . . . . 13 . . . . 271 . 318 . . 119 . 383 . 169 . 143 . . . . . . . 34 123 134 . Knockbacks 2 | . . 1 . . . . . . . . . . . . . . . . . . . . 1 . . . . . . . . . . . . . . . . . Impact 1 | . . . . . . . . . . . . . . . . . . . . . . . 1 . . . . . . . . . . . . . . . . . Kinetic 1 | . . 1 . . . . . . . . . . . . . . . . . . . . . . . . . . . . . . . . . . . . . . Secondary . | . . . . . . . . . . . . . . . . . . . . . . . . . . . . . . . . . . . . . . . . . Self-Inflicted Damage 177 | 32 . 79 . . . . . . . . . . 1 . . . . . . . . . . . . . . . . . . . . . . . . . 65 . Shots 5 | 1 . 2 . . . . . . . . . . 1 . . . . . . . . . . . . . . . . . . . . . . . . . 1 . Rammed 12 | . . 11 . . . . . . . . . . . . . . . . . . . . 1 . . . . . . . . . . . . . . . . . Targets Rammed 14 | . . 13 . . . . . . . . . . . . . . . . . . . . 1 . . . . . . . . . . . . . . . . . Kicked . | . . . . . . . . . . . . . . . . . . . . . . . . . . . . . . . . . . . . . . . . . Crushed 2 | . . 2 . . . . . . . . . . . . . . . . . . . . . . . . . . . . . . . . . . . . . . Highest Temperature 402 | 12 62 255 . . . 402 . . . . . 1 . . . 213 . . . 140 8 2 164 220 206 177 284 17 361 111 241 356 228 17 6 6 282 . 312 230 Average Temperature 53 | 12 24 67 . . . 90 . . . . . 1 . . . 94 . . . 70 5 2 85 89 71 127 66 5 51 44 102 117 106 4 4 4 98 . 38 67 Received Heat Transfer 1480 | . 210 417 . . . 387 12 . . 6 . . . . . 27 . 18 . 72 . . 27 . 90 . 27 45 39 . . . . 16 . . 9 4 74 . Effects 10 | . . . . . . 3 . . . . . . . . . . . . . . . . . . . . . . 1 . . . . . . . . . 3 3 Shutdowns 1 | . . . . . . 1 . . . . . . . . . . . . . . . . . . . . . . . . . . . . . . . . . . Energy Bleed 1 | . . . . . . . . . . . . . . . . . . . . . . . . . . . . . 1 . . . . . . . . . . . Interference 8 | . . . . . . 2 . . . . . . . . . . . . . . . . . . . . . . . . . . . . . . . . 3 3 Siege Activations . | . . . . . . . . . . . . . . . . . . . . . . . . . . . . . . . . . . . . . . . . . Robots Corrupted 8 | . . 1 . . . . . . . . . . . . . 1 . . . . . . . . . . . . . . . . . . . . . . 6 . Combat Hostiles 8 | . . 1 . . . . . . . . . . . . . 1 . . . . . . . . . . . . . . . . . . . . . . 6 . Parts Fried 109 | . . 6 . . . . . . . . . . . . . . . . . . . . . . . . . . . . . . . . . . . . 103 . Impact Corruptions . | . . . . . . . . . . . . . . . . . . . . . . . . . . . . . . . . . . . . . . . . . Robots Melted . | . . . . . . . . . . . . . . . . . . . . . . . . . . . . . . . . . . . . . . . . . Combat Hostiles . | . . . . . . . . . . . . . . . . . . . . . . . . . . . . . . . . . . . . . . . . . Parts Melted 5 | 1 . . . . . 3 . . . . . . . . . . . . . . . . . . . . . . . . . . . . . . . . 1 . Heat Transferred 36639 | 100 . 400 . . . 3404 . . . . . . . . . . . . . . . . . . . . . . . . . . . . . . . . 32735 . Parts Sabotaged . | . . . . . . . . . . . . . . . . . . . . . . . . . . . . . . . . . . . . . . . . . Parts Stolen . | . . . . . . . . . . . . . . . . . . . . . . . . . . . . . . . . . . . . . . . . . Parts Stripped . | . . . . . . . . . . . . . . . . . . . . . . . . . . . . . . . . . . . . . . . . . Power Chain Reactions 24 | 1 . 5 . . . . . . . . . . . . . . . . . . . . . . . . . . . . . . . . . . . . 18 . Missiles Intercepted . | . . . . . . . . . . . . . . . . . . . . . . . . . . . . . . . . . . . . . . . . . Alert | -11 -10 -9 -9 -9 -8 -8 -7 -7 -7 -7 -6 -6 -6 -6 -6 -6 -5 -5 -5 -5 -5 -5 -5 -4 -4 -4 -4 -4 -4 -4 -4 -4 -3 -3 -3 -3 -2 -2 -1 -1 ------- Run | Scr Mat Mat Min Exi Min Mat Fac Low Low Dat Pro Fac Low Low Zio Dee Pro Fac Was Fac Upp Upp War Pro Fac Was Fac Gar Fac Upp Upp Zhi Pro Res Tes Gar Res Qua Acc Com Peak Influence 12306 | 5 150 510 198 . 81 427 250 . . . . 59 . . . . . 1922 672 1150 . . . . 665 200 1799 1712 1236 . . . . 432 351 745 701 523 12306 8292 Average Influence 3380 | 1 65 281 198 . 80 168 184 . . . . 11 . . . . . 853 672 775 . . . . 325 191 670 1498 1048 . . . . 254 281 560 586 368 5140 8156 Maximum Alert Level 5 | . . 2 . . . 2 1 . . . . . . . . . . 5 2 4 . . . . 2 1 5 5 4 . . . . 2 1 3 3 2 5 5 Low Security (%) . | 100 100 16 100 . 100 61 57 . . . . 100 . . . . . 1 . . . . . . 24 40 19 . . . . . . 39 . . . . . . Level 1 . | . . 67 . . . 37 42 . . . . . . . . . . 2 . . . . . . 38 60 32 . . . . . . 31 100 17 . 82 . . Level 2 . | . . 16 . . . 1 . . . . . . . . . . . 26 100 51 . . . . 37 . 4 . . . . . . 29 . 56 83 17 . . Level 3 . | . . . . . . . . . . . . . . . . . . 61 . 36 . . . . . . 13 . 69 . . . . . . 26 16 . . . Level 4 . | . . . . . . . . . . . . . . . . . . 5 . 12 . . . . . . 27 54 30 . . . . . . . . . . . Level 5 95 | . . . . . . . . . . . . . . . . . . 4 . . . . . . . . 1 45 . . . . . . . . . . . 97 High Security 2 | . . . . . . . . . . . . . . . . . . . . . . . . . . . 2 . . . . . . . . . . . . 2 Max Security 2 | . . . . . . . . . . . . . . . . . . . . . . . . . . . . . . . . . . . . . . . 100 . Squads Dispatched 175 | . 1 3 . . . 5 3 . . . . 3 . . . . . 12 . 9 . . . . 4 . 5 . 2 . . . . 1 1 . 3 3 120 . Investigation 18 | . 1 1 . . . 1 2 . . . . 1 . . . . . 1 . 3 . . . . 1 . 1 . . . . . . 1 . . 2 . 3 . Extermination 12 | . . . . . . . 1 . . . . 1 . . . . . 2 . 1 . . . . 1 . 2 . . . . . . . . . . 1 3 . Reinforcement 27 | . . 2 . . . 4 . . . . . 1 . . . . . 6 . 4 . . . . 1 . 1 . 1 . . . . . 1 . 1 2 3 . Assault 112 | . . . . . . . . . . . . . . . . . . 3 . 1 . . . . 1 . 1 . . . . . . . . . . . 106 . Garrison 6 | . . . . . . . . . . . . . . . . . . . . . . . . . . . . . 1 . . . . . . . . . 5 . Intercept . | . . . . . . . . . . . . . . . . . . . . . . . . . . . . . . . . . . . . . . . . . Construction Impeded 4 | . . . . . . . . . . . . . . . . . . 2 . . . . . . . . . . . . . . . . . . . . 2 . Haulers Reinforced 8 | . . . . . . . . . . . . . . . . . . 2 . 2 . . . . 1 . 1 . 1 . . . . . . . 1 . . . Stealth | -11 -10 -9 -9 -9 -8 -8 -7 -7 -7 -7 -6 -6 -6 -6 -6 -6 -5 -5 -5 -5 -5 -5 -5 -4 -4 -4 -4 -4 -4 -4 -4 -4 -3 -3 -3 -3 -2 -2 -1 -1 --------- Run | Scr Mat Mat Min Exi Min Mat Fac Low Low Dat Pro Fac Low Low Zio Dee Pro Fac Was Fac Upp Upp War Pro Fac Was Fac Gar Fac Upp Upp Zhi Pro Res Tes Gar Res Qua Acc Com Distress Signals 61 | . 2 3 . . . 1 . . . . . . . . . . . 2 . 4 . . . . 5 . 3 . 1 . . . . 3 1 . 5 3 7 21 Communications Jammed . | . . . . . . . . . . . . . . . . . . . . . . . . . . . . . . . . . . . . . . . . . Distress Signals . | . . . . . . . . . . . . . . . . . . . . . . . . . . . . . . . . . . . . . . . . . Times Spotted 869 | . 11 51 . . 2 42 4 . 4 4 . 3 5 . . 10 9 60 1 64 8 6 16 . 41 4 41 19 17 6 7 . . 26 4 10 12 6 367 9 Peak Tracking Total 26 | . 9 7 . . 2 8 2 . 4 4 . 2 4 . . 3 4 5 1 6 4 4 15 . 7 4 5 11 7 3 6 . . 9 4 4 3 3 26 4 Tactical Retreats 48 | . 1 5 . . . 2 2 . . . . . 1 . . 1 . 2 . 7 . . 1 . 4 . 2 . . . 1 . . 2 . . . . 17 . Traps | -11 -10 -9 -9 -9 -8 -8 -7 -7 -7 -7 -6 -6 -6 -6 -6 -6 -5 -5 -5 -5 -5 -5 -5 -4 -4 -4 -4 -4 -4 -4 -4 -4 -3 -3 -3 -3 -2 -2 -1 -1 ------- Run | Scr Mat Mat Min Exi Min Mat Fac Low Low Dat Pro Fac Low Low Zio Dee Pro Fac Was Fac Upp Upp War Pro Fac Was Fac Gar Fac Upp Upp Zhi Pro Res Tes Gar Res Qua Acc Com Traps Triggered 237 | . 1 4 . . . . . . . . . . . . . 1 . 2 . 2 . . . . 1 . 1 . 1 . . . . 1 . 3 1 . 219 . Indirectly 219 | . . . . . . . . . . . . . . . . 1 . . . . . . . . . . . . . . . . . . . . . . 218 . Trap Hack Attempts 1 | . . . . . . . . . . . . . . . . . . . . . . . . . . . . . . . . . . . . . . . 1 . Triggered . | . . . . . . . . . . . . . . . . . . . . . . . . . . . . . . . . . . . . . . . . . Disarmed . | . . . . . . . . . . . . . . . . . . . . . . . . . . . . . . . . . . . . . . . . . Reprogrammed 1 | . . . . . . . . . . . . . . . . . . . . . . . . . . . . . . . . . . . . . . . 1 . Reused 105 | . . . . . . . . . . . . . . . . 2 . . . . . . . . . . . . . . . . . . . . . . 103 . Traps Extracted . | . . . . . . . . . . . . . . . . . . . . . . . . . . . . . . . . . . . . . . . . . Installed 264 | . . . . . . . . . . . . . . . . 6 . . . . . . . . . . . . . . . . . . . . . . 258 . Triggered 81 | . . . . . . . . . . . 2 . . . . . . . . . . . 2 . . . . . . . . . . . . . . . 77 . Fabricated Traps 292 | . . . . . . . . . . . . . . . . 6 . . . . . . . . . . . . . . . . . . . . . . 286 . Machines | -11 -10 -9 -9 -9 -8 -8 -7 -7 -7 -7 -6 -6 -6 -6 -6 -6 -5 -5 -5 -5 -5 -5 -5 -4 -4 -4 -4 -4 -4 -4 -4 -4 -3 -3 -3 -3 -2 -2 -1 -1 ---------- Run | Scr Mat Mat Min Exi Min Mat Fac Low Low Dat Pro Fac Low Low Zio Dee Pro Fac Was Fac Upp Upp War Pro Fac Was Fac Gar Fac Upp Upp Zhi Pro Res Tes Gar Res Qua Acc Com Machines Disabled 68 | . . 2 . . . 3 . . . 1 . . . . . 3 . 2 . 10 . 1 . . 13 . 11 . 4 . . . . . 2 2 4 1 5 4 Max in Single Turn 2 | . . 1 . . . 1 . . . 1 . . . . . 1 . 1 . . . 1 . . . . . . . . . . . . 1 1 1 1 1 2 Garrison Access 16 | . . . . . . . . . . . . 1 . . . . . 2 . 2 . . . . 3 . . . 1 . . . . 1 . . 1 . 5 . Garrison Relay 1 | . . . . . . . . . . . . . . . . . . . . . . . . . . . . . . . . . . . . 1 . . . . Phase Generator 1 | . . . . . . . . . . . . . . . . . . . . . . . . . . . . . . . . . . . . . . . . 1 Machines Sabotaged . | . . . . . . . . . . . . . . . . . . . . . . . . . . . . . . . . . . . . . . . . . Garrisons Compromised . | . . . . . . . . . . . . . . . . . . . . . . . . . . . . . . . . . . . . . . . . . Overloaded Fab Kills . | . . . . . . . . . . . . . . . . . . . . . . . . . . . . . . . . . . . . . . . . . Fab Network Shutdowns 3 | . . . . . . . . . . . . . . . . . . 1 . . . . . . . . 1 . . . . . . . . . . . 1 . Hacking | -11 -10 -9 -9 -9 -8 -8 -7 -7 -7 -7 -6 -6 -6 -6 -6 -6 -5 -5 -5 -5 -5 -5 -5 -4 -4 -4 -4 -4 -4 -4 -4 -4 -3 -3 -3 -3 -2 -2 -1 -1 --------- Run | Scr Mat Mat Min Exi Min Mat Fac Low Low Dat Pro Fac Low Low Zio Dee Pro Fac Was Fac Upp Upp War Pro Fac Was Fac Gar Fac Upp Upp Zhi Pro Res Tes Gar Res Qua Acc Com Machines Accessed 146 | . 2 6 . 1 . 6 10 . . 3 . 13 1 1 . . . 17 . 19 . 1 1 . 13 . 10 . 6 . . 4 . 5 1 . 5 2 19 . Terminals 79 | . 1 4 . . . 5 8 . . . . 6 . 1 . . . 10 . 12 . . . . 7 . 4 . 3 . . . . 2 . . 4 2 10 . Fabricators 19 | . . . . . . . 1 . . . . 3 . . . . . 3 . 2 . . . . 2 . 3 . 1 . . . . 1 . . . . 3 . Repair Stations 2 | . . . . . . . . . . . . 2 . . . . . . . . . . . . . . . . . . . . . . . . . . . . Recycling Units 14 | . 1 2 . . . . 1 . . . . 1 . . . . . 2 . 3 . . . . 1 . 1 . 1 . . . . . . . . . 1 . Scanalyzers 3 | . . . . . . 1 . . . . . . . . . . . . . . . . . . . . 1 . . . . . . 1 . . . . . . Garrison Access 18 | . . . . . . . . . . . . 1 . . . . . 2 . 2 . . . . 3 . 1 . 1 . . . . 1 1 . 1 . 5 . Total Hacks 544 | . 6 12 . 1 . 19 23 . . 22 . 39 1 2 . . . 82 . 82 . 3 1 . 50 . 40 . 28 . . 17 . 18 1 . 13 3 81 . Successful 366 | . 2 4 . 1 . 11 12 . . 22 . 30 1 2 . . . 46 . 52 . 3 1 . 42 . 30 . 18 . . 17 . 12 1 . 4 3 52 . Failed 176 | . 4 8 . . . 8 10 . . . . 8 . . . . . 36 . 30 . . . . 8 . 10 . 10 . . . . 6 . . 9 . 29 . Catastrophic 30 | . 2 1 . . . 1 2 . . . . . . . . . . 8 . 1 . . . . 2 . 2 . 3 . . . . 1 . . 4 . 3 . Database Lockouts 4 | . . . . . . . 2 . . . . 2 . . . . . . . . . . . . . . . . . . . . . . . . . . . . Manual 252 | . 3 6 . . . 14 13 . . . . 21 . 2 . . . 47 . 33 . . . . 20 . 21 . 13 . . . . 5 . . 12 3 39 . Terminals 304 | . 3 8 . . . 17 19 . . . . 22 . 2 . . . 46 . 59 . . . . 28 . 18 . 14 . . . . 8 . . 12 3 45 . Fabricators 131 | . . . . . . . 3 . . . . 10 . . . . . 29 . 14 . . . . 17 . 17 . 11 . . . . 4 . . . . 26 . Repair Stations 5 | . . . . . . . . . . . . 5 . . . . . . . . . . . . . . . . . . . . . . . . . . . . Recycling Units 25 | . 3 4 . . . . 1 . . . . 1 . . . . . 3 . 7 . . . . 2 . 1 . 2 . . . . . . . . . 1 . Scanalyzers 8 | . . . . . . 2 . . . . . . . . . . . . . . . . . . . . 2 . . . . . . 4 . . . . . . Garrison Access 26 | . . . . . . . . . . . . 1 . . . . . 4 . 2 . . . . 3 . 2 . 1 . . . . 2 1 . 1 . 9 . Terminal Hacks 173 | . 1 2 . 1 . 5 6 . . 22 . 13 1 2 . . . 18 . 25 . 3 1 . 18 . 9 . 6 . . 17 . 3 . . 2 1 17 . Record 15 | . . . . 1 . . . . . 6 . . . . . . . . . . . 3 . . . . . . . . . 5 . . . . . . . . Part Schematic 26 | . 1 . . . . 1 1 . . 7 . 1 . 2 . . . 2 . 3 . . . . 3 . 1 . . . . 4 . . . . . . . . Robot Schematic 7 | . . . . . . . . . . 6 . . . . . . . . . . . . . . . . 1 . . . . . . . . . . . . . Robot Analysis 6 | . . . . . . 1 . . . . . . . . . . . . . . . . . . . . . . . . . 4 . . . . . . 1 . Prototype ID Bank 10 | . . . . . . . . . . 3 . . . . . . . . . . . . . . . . 1 . 1 . . 4 . 1 . . . . . . Open Door 5 | . . . . . . . . . . . . . 1 . . . . . . . . . 1 . . . . . . . . . . . . . . . 3 . Level Access Points 1 | . . . . . . . . . . . . . . . . . . . . . . . . . . . . . . . . . . . . . . 1 . . Branch Access Points 10 | . . 1 . . . . 1 . . . . 1 . . . . . 1 . 1 . . . . . . 1 . 1 . . . . 1 . . 1 . 1 . Emergency Access Points 1 | . . . . . . . . . . . . 1 . . . . . . . . . . . . . . . . . . . . . . . . . . . . Machine Index 2 | . . . . . . . . . . . . . . . . . . . . . . . . . 1 . . . . . . . . . . . 1 . . . Terminal Index 8 | . . . . . . 1 1 . . . . 2 . . . . . 1 . 1 . . . . . . . . 1 . . . . . . . . . 1 . Fabricator Index 4 | . . . . . . . . . . . . 1 . . . . . 1 . 1 . . . . . . 1 . . . . . . . . . . . . . Repair Station Index 1 | . . . . . . . . . . . . . . . . . . 1 . . . . . . . . . . . . . . . . . . . . . . Garrison Index 2 | . . . . . . . . . . . . 1 . . . . . . . . . . . . . . . . . . . . . . . . . . 1 . Alert Level 6 | . . . . . . 1 . . . . . . . . . . . 1 . 2 . . . . 2 . . . . . . . . . . . . . . . Unreport Threat 20 | . . . . . . 1 . . . . . 1 . . . . . . . 4 . . . . 6 . . . 2 . . . . 1 . . . . 5 . Locate Traps 7 | . . . . . . . . . . . . . . . . . . 1 . 5 . . . . . . 1 . . . . . . . . . . . . . Dispatch Records 1 | . . . . . . . . . . . . . . . . . . . . . . . . . . . . . . . . . . . . . . . 1 . Transport Status 1 | . . . . . . . 1 . . . . . . . . . . . . . . . . . . . . . . . . . . . . . . . . . Recall Investigation 3 | . . . . . . . . . . . . 1 . . . . . 1 . 1 . . . . . . . . . . . . . . . . . . . . Recall Extermination 6 | . . . . . . . 1 . . . . 1 . . . . . 2 . . . . . . 1 . . . . . . . . . . . . . 1 . Recall Reinforcements 9 | . . . . . . . . . . . . 1 . . . . . 3 . 2 . . . . . . 1 . . . . . . . . . . . 2 . Recall Assault 4 | . . . . . . . . . . . . . . . . . . 1 . 1 . . . . 1 . . . . . . . . . . . . . 1 . Hauler Manifests 6 | . . . . . . . 1 . . . . 1 . . . . . 1 . 1 . . . . 1 . 1 . . . . . . . . . . . . . Registered Components 4 | . . 1 . . . . . . . . . . . . . . . 1 . 1 . . . . 1 . . . . . . . . . . . . . . . Registered Prototypes 1 | . . . . . . . . . . . . . . . . . . . . . . . . . 1 . . . . . . . . . . . . . . . Zone Layout 7 | . . . . . . . . . . . . 1 . . . . . 1 . 2 . . . . 1 . 1 . 1 . . . . . . . . . . . Fabricator Hacks 80 | . . . . . . . 3 . . . . 6 . . . . . 14 . 10 . . . . 13 . 10 . 7 . . . . 3 . . . . 14 . Network Status 3 | . . . . . . . . . . . . . . . . . . 1 . . . . . . . . 1 . 1 . . . . . . . . . . . Load Schematic 32 | . . . . . . . 1 . . . . 2 . . . . . 6 . 5 . . . . 6 . 5 . 2 . . . . 1 . . . . 4 . Build 45 | . . . . . . . 2 . . . . 4 . . . . . 7 . 5 . . . . 7 . 4 . 4 . . . . 2 . . . . 10 . Repair Station Hacks 3 | . . . . . . . . . . . . 3 . . . . . . . . . . . . . . . . . . . . . . . . . . . . Scan Component 1 | . . . . . . . . . . . . 1 . . . . . . . . . . . . . . . . . . . . . . . . . . . . Repair 1 | . . . . . . . . . . . . 1 . . . . . . . . . . . . . . . . . . . . . . . . . . . . Refit 1 | . . . . . . . . . . . . 1 . . . . . . . . . . . . . . . . . . . . . . . . . . . . Recycling Unit Hacks 16 | . 1 1 . . . . 1 . . . . 1 . . . . . 2 . 6 . . . . 1 . 1 . 1 . . . . . . . . . 1 . Retrieve Components 16 | . 1 1 . . . . 1 . . . . 1 . . . . . 2 . 6 . . . . 1 . 1 . 1 . . . . . . . . . 1 . Scanalyzer 7 | . . . . . . 2 . . . . . . . . . . . . . . . . . . . . 2 . . . . . . 3 . . . . . . Insert Component 4 | . . . . . . 1 . . . . . . . . . . . . . . . . . . . . 1 . . . . . . 2 . . . . . . Analyze 3 | . . . . . . 1 . . . . . . . . . . . . . . . . . . . . 1 . . . . . . 1 . . . . . . Garrison Access Hacks 18 | . . . . . . . . . . . . 1 . . . . . 1 . 2 . . . . 3 . 1 . 1 . . . . 2 1 . 1 . 5 . Unlock Access 2 | . . . . . . . . . . . . . . . . . . . . . . . . . . . 1 . . . . . . . 1 . . . . . Seal Access 15 | . . . . . . . . . . . . 1 . . . . . 1 . 2 . . . . 3 . . . 1 . . . . 1 . . 1 . 5 . Coupler Status 1 | . . . . . . . . . . . . . . . . . . . . . . . . . . . . . . . . . . 1 . . . . . . Unauthorized Hacks 69 | . . 1 . . . 4 2 . . . . 6 . . . . . 11 . 9 . . . . 7 . 7 . 3 . . . . 1 . . 1 2 15 . Terminals 38 | . . 1 . . . 4 2 . . . . 3 . . . . . 5 . 7 . . . . 3 . 2 . . . . . . 1 . . 1 2 7 . Track 3 | . . . . . . . . . . . . . . . . . . . . 1 . . . . . . 1 . . . . . . . . . . . 1 . Assimilate 7 | . . . . . . . . . . . . 1 . . . . . 1 . 1 . . . . . . . . . . . . . . . . 1 1 2 . Botnet 22 | . . 1 . . . 4 2 . . . . 1 . . . . . 3 . 4 . . . . 3 . 1 . . . . . . 1 . . . . 2 . Disrupt 2 | . . . . . . . . . . . . . . . . . . . . . . . . . . . . . . . . . . . . . . 1 1 . Operators 4 | . . . . . . . . . . . . 1 . . . . . 1 . 1 . . . . . . . . . . . . . . . . . . 1 . Fabricators 28 | . . . . . . . . . . . . 3 . . . . . 6 . 2 . . . . 4 . 5 . 3 . . . . . . . . . 5 . Report 6 | . . . . . . . . . . . . 1 . . . . . 1 . . . . . . 1 . 1 . 1 . . . . . . . . . 1 . Prioritize 6 | . . . . . . . . . . . . . . . . . . 2 . . . . . . 1 . 1 . 1 . . . . . . . . . 1 . Siphon 15 | . . . . . . . . . . . . 2 . . . . . 2 . 2 . . . . 2 . 3 . 1 . . . . . . . . . 3 . Haulers 1 | . . . . . . . . . . . . . . . . . . 1 . . . . . . . . . . . . . . . . . . . . . . Repair Stations . | . . . . . . . . . . . . . . . . . . . . . . . . . . . . . . . . . . . . . . . . . Recycling Units . | . . . . . . . . . . . . . . . . . . . . . . . . . . . . . . . . . . . . . . . . . Scanalyzers . | . . . . . . . . . . . . . . . . . . . . . . . . . . . . . . . . . . . . . . . . . Garrison Access 3 | . . . . . . . . . . . . . . . . . . . . . . . . . . . . . . . . . . . . . . . 3 . Reprogram 3 | . . . . . . . . . . . . . . . . . . . . . . . . . . . . . . . . . . . . . . . 3 . Data Cores Recovered 6 | . . . . . . . . . . . . . . . . . . . . . . . . . 2 . 2 . . . . . . . . . . . 2 . Used 4 | . . . . . . . . . . . . . . . . . . . . . . . . . 2 . 2 . . . . . . . . . . . . . Hacking Detections 86 | . 2 6 . . . 6 6 . . . . 8 . . . . . 13 . 12 . . . . 6 . 4 . 3 . . . . 4 1 . 4 . 11 . Full Trace Events 13 | . 1 1 . . . 3 1 . . . . . . . . . . 1 . 2 . . . . 1 . . . . . . . . . . . 2 . 1 . Feedback Events 3 | . 1 . . . . . . . . . . . . . . . . . . 1 . . . . . . . . . . . . . . . . 1 . . . Corruption 2 | . 1 . . . . . . . . . . . . . . . . . . 1 . . . . . . . . . . . . . . . . . . . . Hackware Fried 1 | . . . . . . . . . . . . . . . . . . . . . . . . . . . . . . . . . . . . . 1 . . . Feedback Blocked . | . . . . . . . . . . . . . . . . . . . . . . . . . . . . . . . . . . . . . . . . . Robot Schematics Acquired 7 | . . . . . . . . . . 6 . . . . . . . . . . . . . . . . 1 . . . . . . . . . . . . . Robots Built . | . . . . . . . . . . . . . . . . . . . . . . . . . . . . . . . . . . . . . . . . . Matter . | . . . . . . . . . . . . . . . . . . . . . . . . . . . . . . . . . . . . . . . . . Time . | . . . . . . . . . . . . . . . . . . . . . . . . . . . . . . . . . . . . . . . . . Total Robot Build Rating . | . . . . . . . . . . . . . . . . . . . . . . . . . . . . . . . . . . . . . . . . . Part Schematics Acquired 29 | . 1 . . . . 2 1 . . 7 . 1 . 2 . . . 2 . 3 . . . . 3 . 2 . . . . 4 . 1 . . . . . . Parts Built 50 | . . . . . . . 2 . . . . 5 . . . . . 6 . 9 . . . . 9 . 4 . 4 . . . . 2 . . . . 9 . Matter 8588 | . . . . . . . 372 . . . . 803 . . . . . 1022 . 721 . . . . 1080 . 952 . 1002 . . . . 702 . . . . 1934 . Time 2553 | . . . . . . . 98 . . . . 302 . . . . . 285 . 231 . . . . 459 . 294 . 354 . . . . 124 . . . . 406 . Total Part Build Rating 291 | . . . . . . . 4 . . . . 28 . . . . . 29 . 47 . . . . 66 . 24 . 26 . . . . 14 . . . . 53 . Parts Repaired 1 | . . . . . . . . . . . . 1 . . . . . . . . . . . . . . . . . . . . . . . . . . . . Time 16 | . . . . . . . . . . . . 16 . . . . . . . . . . . . . . . . . . . . . . . . . . . . Parts Recycled . | . . . . . . . . . . . . . . . . . . . . . . . . . . . . . . . . . . . . . . . . . Recycled Matter . | . . . . . . . . . . . . . . . . . . . . . . . . . . . . . . . . . . . . . . . . . Retrieved Matter . | . . . . . . . . . . . . . . . . . . . . . . . . . . . . . . . . . . . . . . . . . Retrieved Components 51 | . . . . . . . 3 . . . . . . . . . . 1 . 36 . . . . 6 . 3 . 1 . . . . . . . . . 1 . Parts Scanalyzed 3 | . . . . . . 1 . . . . . . . . . . . . . . . . . . . . 1 . . . . . . 1 . . . . . . Part Schematics Acquired 3 | . . . . . . 1 . . . . . . . . . . . . . . . . . . . . 1 . . . . . . 1 . . . . . . Parts Damaged . | . . . . . . . . . . . . . . . . . . . . . . . . . . . . . . . . . . . . . . . . . Bothacking | -11 -10 -9 -9 -9 -8 -8 -7 -7 -7 -7 -6 -6 -6 -6 -6 -6 -5 -5 -5 -5 -5 -5 -5 -4 -4 -4 -4 -4 -4 -4 -4 -4 -3 -3 -3 -3 -2 -2 -1 -1 ------------ Run | Scr Mat Mat Min Exi Min Mat Fac Low Low Dat Pro Fac Low Low Zio Dee Pro Fac Was Fac Upp Upp War Pro Fac Was Fac Gar Fac Upp Upp Zhi Pro Res Tes Gar Res Qua Acc Com Used RIF Installer 2 | . . . . . . . . . . . . . . . . . . . . . . . . . . . . 1 . . . . . . . 1 . . . . Watcher Feeds 1 | . . . . . . . . . . . . . . . . . . . . . . . . . . . . . . . . . . . . 1 . . . . Robots Hacked 2 | . . . . . . . . . . . . . . . . . . . . . . . . . . . . . . . . . . . . . . . 2 . Non-combat 1 | . . . . . . . . . . . . . . . . . . . . . . . . . . . . . . . . . . . . . . . 1 . Combat 1 | . . . . . . . . . . . . . . . . . . . . . . . . . . . . . . . . . . . . . . . 1 . Robot Hacks Applied 7 | . . . . . . . . . . . . . . . . . . . . . . . . . . . . . . . . . . . . . . . 7 . parse_system 1 | . . . . . . . . . . . . . . . . . . . . . . . . . . . . . . . . . . . . . . . 1 . purge_threat 5 | . . . . . . . . . . . . . . . . . . . . . . . . . . . . . . . . . . . . . . . 5 . disarm_traps 1 | . . . . . . . . . . . . . . . . . . . . . . . . . . . . . . . . . . . . . . . 1 . Relay Couplers Released 13 | . . . . . . . . . . . . . . . . . . 1 . . . . . . 4 . . . 3 . . . . . . 5 . . . . Machine Destruction 9 | . . . . . . . . . . . . . . . . . . 1 . . . . . . . . . . 3 . . . . . . 5 . . . . Programmers 4 | . . . . . . . . . . . . . . . . . . . . . . . . . 4 . . . . . . . . . . . . . . . Attached 2 | . . . . . . . . . . . . . . . . . . . . . . . . . . . . . . . . . . . . . . . 2 . Robots Rewired 3 | . . . . 3 . . . . . . . . . . . . . . . . . . . . . . . . . . . . . . . . . . . . Allies Hacked 3 | . . . . . . . . . . . . . . . . . . . . . . . . . . . . . . . . . . 3 . . . . . . Hacks Repelled . | . . . . . . . . . . . . . . . . . . . . . . . . . . . . . . . . . . . . . . . . . Allies | -11 -10 -9 -9 -9 -8 -8 -7 -7 -7 -7 -6 -6 -6 -6 -6 -6 -5 -5 -5 -5 -5 -5 -5 -4 -4 -4 -4 -4 -4 -4 -4 -4 -3 -3 -3 -3 -2 -2 -1 -1 -------- Run | Scr Mat Mat Min Exi Min Mat Fac Low Low Dat Pro Fac Low Low Zio Dee Pro Fac Was Fac Upp Upp War Pro Fac Was Fac Gar Fac Upp Upp Zhi Pro Res Tes Gar Res Qua Acc Com Total Allies 20 | . . . . 3 . . . . . . . 1 . . . . . 1 . 1 . . . . . . . . . . . . . 3 . . 1 1 9 . Largest Group 9 | . . . . 3 3 3 . . . . . 1 1 . . . . 1 . 1 . . . . . . . . . . . . . 3 . . 1 1 9 . Highest-Rated Group 478 | . . . . 37 37 37 . . . . . 26 26 . . . . 10 . 26 . . . . . . . . . . . . . 138 . . 10 26 478 . Highest-Rated Ally 64 | . . . . 21 21 21 . . . . . 26 26 . . . . 10 . 26 . . . . . . . . . . . . . 46 . . 10 26 64 . Total Orders 442 | . . . . . . . . . . . . . . . . 43 10 54 . 42 4 4 3 8 34 . 41 6 19 13 7 . 13 24 1 11 11 3 79 12 STAY 67 | . . . . . . . . . . . . . . . . 8 . 11 . 5 . . 1 . 1 . 7 1 1 1 . . 3 7 . 1 1 . 19 . GOTO 18 | . . . . . . . . . . . . . . . . 5 1 . . . . . . . . . . . . . . . . . . . . . 11 1 ROAM 83 | . . . . . . . . . . . . . . . . 5 3 10 . 3 . . 1 2 13 . 9 2 4 4 1 . 3 1 . 3 3 1 12 3 COLLECT 8 | . . . . . . . . . . . . . . . . 4 1 . . . 1 . . 1 . . . . . 1 . . . . . . . . . . EXPLORE 266 | . . . . . . . . . . . . . . . . 21 5 33 . 34 3 4 1 5 20 . 25 3 14 7 6 . 7 16 1 7 7 2 37 8 Ally Attacks 3042 | . . . . . 2 29 . . . . . . . . . 111 59 263 . 259 31 77 . 37 277 . 227 72 137 80 57 . 63 150 2 116 52 40 698 203 Total Damage 63616 | . . . . . 35 396 . . . . . . . . . 1869 1202 5580 . 5456 575 1678 . 916 5106 . 6163 1393 2582 1322 778 . 1074 4051 . 2064 1092 851 14855 4578 Kills 413 | . . . . . 2 4 . . . . . . . . . 18 10 52 . 54 8 13 . 8 33 . 39 11 22 10 6 . 3 21 . 14 6 5 65 9 Allies Corrupted 10 | . . . . . . . . . . . . . . . . . . . . . . . . . . . . . . . . . . 3 . . 1 . 3 3 Allies Melted . | . . . . . . . . . . . . . . . . . . . . . . . . . . . . . . . . . . . . . . . . . Intel | -11 -10 -9 -9 -9 -8 -8 -7 -7 -7 -7 -6 -6 -6 -6 -6 -6 -5 -5 -5 -5 -5 -5 -5 -4 -4 -4 -4 -4 -4 -4 -4 -4 -3 -3 -3 -3 -2 -2 -1 -1 ------- Run | Scr Mat Mat Min Exi Min Mat Fac Low Low Dat Pro Fac Low Low Zio Dee Pro Fac Was Fac Upp Upp War Pro Fac Was Fac Gar Fac Upp Upp Zhi Pro Res Tes Gar Res Qua Acc Com Robot Analysis Total 6 | . . . . . . 1 . . . . . . . . . . . . . . . . . . . . . . . . . 4 . . . . . . 1 . Derelict Logs Recovered 10 | . . . . . . . . 1 . . . . . . . . 2 . . . 1 1 . 2 . . . . . 1 2 . . . . . . . . . Drone Launches 611 | . . . . . . . . . . . . . . . . 23 20 80 . 77 14 7 2 24 34 . 57 7 20 16 16 . 15 25 . 16 16 2 105 35 Drone Recoveries 582 | . . . . . . . . . . . . . . . . 23 20 78 . 77 10 11 . 22 36 . 57 7 16 16 16 . 13 23 . 14 14 2 98 29 Exploration | -11 -10 -9 -9 -9 -8 -8 -7 -7 -7 -7 -6 -6 -6 -6 -6 -6 -5 -5 -5 -5 -5 -5 -5 -4 -4 -4 -4 -4 -4 -4 -4 -4 -3 -3 -3 -3 -2 -2 -1 -1 ------------- Run | Scr Mat Mat Min Exi Min Mat Fac Low Low Dat Pro Fac Low Low Zio Dee Pro Fac Was Fac Upp Upp War Pro Fac Was Fac Gar Fac Upp Upp Zhi Pro Res Tes Gar Res Qua Acc Com Turns Passed 41849 | 95 130 1515 154 716 135 1721 428 56 166 74 177 698 706 63 180 2476 228 1959 14 1451 175 186 204 260 1197 25 1195 77 752 178 129 108 223 637 75 194 441 254 21201 1196 Spaces Moved 24875 | 68 84 764 79 345 67 746 471 150 310 97 132 728 359 209 384 3883 424 2011 59 2023 205 290 290 296 1393 67 1128 126 573 263 201 152 174 638 88 180 762 213 4015 428 Core 9 | 4 . 4 . . . . . . 1 . . . . . . . . . . . . . . . . . . . . . . . . . . . . . . . Treads 1492 | 10 2 227 79 345 67 746 16 . . . . . . . . . . . . . . . . . . . . . . . . . . . . . . . . . Legs . | . . . . . . . . . . . . . . . . . . . . . . . . . . . . . . . . . . . . . . . . . Wheels 669 | 54 82 533 . . . . . . . . . . . . . . . . . . . . . . . . . . . . . . . . . . . . . . Hover 19659 | . . . . . . . . . . . . . . . . 3660 424 2011 59 2023 205 290 290 296 1393 67 1128 126 573 263 201 152 174 638 88 180 762 213 4015 428 Flight 3046 | . . . . . . . 455 150 309 97 132 728 359 209 384 223 . . . . . . . . . . . . . . . . . . . . . . . . Fastest Speed 16 | 50 80 80 180 200 200 180 27 32 28 28 32 28 30 30 30 16 48 24 24 24 53 53 26 27 24 24 48 48 48 48 48 48 48 44 44 44 22 22 22 21 Average Speed 55 | 96 89 134 190 200 200 183 36 32 32 31 32 29 30 30 30 46 48 47 24 49 53 53 48 54 50 30 48 48 48 48 48 48 48 44 44 44 38 38 49 32 Slowest Speed 350 | 160 160 200 200 200 200 220 180 32 350 32 32 34 30 30 30 60 48 48 24 53 53 53 118 55 55 48 148 48 48 48 48 48 48 44 44 44 148 44 144 124 Overloaded Moves . | . . . . . . . . . . . . . . . . . . . . . . . . . . . . . . . . . . . . . . . . . Propulsion Burnouts . | . . . . . . . . . . . . . . . . . . . . . . . . . . . . . . . . . . . . . . . . . Robots Hopped 11 | . . . . . . . . . . . . 8 . . . 3 . . . . . . . . . . . . . . . . . . . . . . . . Cave-ins Triggered . | . . . . . . . . . . . . . . . . . . . . . . . . . . . . . . . . . . . . . . . . . Exploration Rate (%) 45 | 6 30 69 24 79 16 64 15 30 57 77 30 16 65 48 48 86 71 33 68 43 50 62 59 64 40 81 24 43 17 66 45 63 42 19 17 50 23 32 53 21 Regions Visited 40 Branch Regions 23 Pre-discovered Areas 8 | . . . . 1 . . . 1 . 1 . . . . . . 1 . . . . . . . . . . . . . 1 3 . . . . . . . . Known Exits Taken 28 | . . 1 . . . . 1 1 1 1 1 1 1 1 1 1 1 . . 1 1 1 1 1 . . 1 . 1 1 1 1 1 1 1 . 1 1 1 . Unknown Exits Taken 6 | 1 1 . 1 1 1 1 . . . . . . . . . . . . . . . . . . . . . . . . . . . . . . . . . . Scrap Searched 28 | . . . 1 . . . . . 10 . . . 1 2 . . 1 . . . 2 3 . 3 . . . . . 1 3 . 1 . . . . . . . Spaces Dug 493 | . . . . . . 17 24 2 25 4 17 38 18 . 5 32 1 69 . 52 . 3 5 1 24 . 17 . 10 3 . . 13 14 3 2 6 13 54 21 Terrain Destroyed 915 | 3 . 14 . . . 17 24 2 25 4 17 38 46 . 5 88 1 69 . 52 5 3 5 1 24 . 17 . 10 3 . . 13 14 3 2 6 13 317 74 Melee 493 | . . . . . . 17 24 2 25 4 17 38 18 . 5 32 1 69 . 52 . 3 5 1 24 . 17 . 10 3 . . 13 14 3 2 6 13 54 21 Projectile 1 | . . 1 . . . . . . . . . . . . . . . . . . . . . . . . . . . . . . . . . . . . . . AOE 421 | 3 . 13 . . . . . . . . . . 28 . . 56 . . . . 5 . . . . . . . . . . . . . . . . . 263 53 Actions | -11 -10 -9 -9 -9 -8 -8 -7 -7 -7 -7 -6 -6 -6 -6 -6 -6 -5 -5 -5 -5 -5 -5 -5 -4 -4 -4 -4 -4 -4 -4 -4 -4 -3 -3 -3 -3 -2 -2 -1 -1 --------- Run | Scr Mat Mat Min Exi Min Mat Fac Low Low Dat Pro Fac Low Low Zio Dee Pro Fac Was Fac Upp Upp War Pro Fac Was Fac Gar Fac Upp Upp Zhi Pro Res Tes Gar Res Qua Acc Com Total 50328 | 86 111 1037 83 374 67 937 712 155 350 129 248 1169 931 208 419 4528 440 2894 58 2366 269 315 338 391 1825 71 1737 139 1028 309 231 184 295 957 104 285 865 356 21919 1408 Wait 21800 | 1 5 40 . 3 . 35 165 4 8 16 99 383 548 . 3 354 10 746 . 224 57 22 10 90 331 5 547 6 424 40 23 17 91 260 . 71 62 124 16070 906 Move 24818 | 67 83 763 78 344 66 745 470 149 309 96 131 712 358 208 383 3877 423 2011 58 2022 204 289 290 295 1393 66 1127 125 572 262 200 151 173 637 88 179 761 212 4014 427 Hop 9 | . . . . . . . . . . . . 7 . . . 2 . . . . . . . . . . . . . . . . . . . . . . . . Pick Up 308 | 4 2 27 1 3 . 20 4 . 1 3 . 3 . . 2 78 1 19 . 16 2 . 3 . 9 . 12 2 3 1 2 . 5 8 . 2 3 1 70 1 Fast Attach 98 | 7 2 13 . . . 3 5 . 3 . . 5 . . . 17 . 2 . 2 . . 7 . 5 . . . 2 . . 8 1 . 1 . 2 . 10 3 Attach 91 | . 1 9 1 1 . 3 12 . . . . 3 . . 1 8 . 2 . 3 . . . . 8 . 1 1 . . . . 2 5 . . 3 . 23 4 Detach 84 | . . 5 . . . 2 10 . . . . 5 . . 1 14 . . . . . . 2 . 9 . 1 . 1 . . . . 4 . . . . 25 5 Swap 137 | . 3 14 1 . . 14 1 . . . . 1 . . . 12 . 5 . 11 . . 4 5 16 . 8 . 1 2 2 . 1 7 1 1 1 . 25 1 Drop 384 | . . 14 1 2 . 18 19 . 3 3 . 9 . . . 105 1 17 . 16 2 . 10 . 11 . 10 2 5 1 2 7 6 6 1 1 3 1 103 5 Fire 1369 | 7 15 139 1 . 1 77 . . . . . . 6 . . 5 . . . . 1 . . . . . . . . . . . . . . . . . 1115 2 Melee 832 | . . . . . . 20 26 2 26 11 18 41 19 . 29 49 4 81 . 65 1 4 11 1 42 . 25 2 15 3 1 1 13 25 13 6 29 18 181 50 Ram 1 | . . 1 . . . . . . . . . . . . . . . . . . . . . . . . . . . . . . . . . . . . . . Kick . | . . . . . . . . . . . . . . . . . . . . . . . . . . . . . . . . . . . . . . . . . Crush 12 | . . 12 . . . . . . . . . . . . . . . . . . . . . . . . . . . . . . . . . . . . . . Escape Stasis 24 | . . . . . . . . . . . . . . . . . . . . . . . . . . . . . . . . . . . . 24 . . . . Rewire 21 | . . . . 21 . . . . . . . . . . . . . . . . . . . . . . . . . . . . . . . . . . . . Trap 265 | . . . . . . . . . . . . . . . . 6 . . . . . . . . . . . . . . . . . . . . . . 259 . Miscellaneous 75 | . . . . . . . . . . . . . . . . 1 1 11 . 7 2 . 1 . 1 . 6 1 5 . 1 . 3 5 . 1 1 . 24 4 Route ------- -11/Scrapyard -10/Materials -9/Materials (discovered 6 exits: *Mat x2 / *Min x2 / Sto x2) -9/Mines (discovered 2 exits: *Mat / *Exi) -9/Exiles -8/Mines -8/Materials (discovered 2 exits: *Fac x2) -7/Factory (discovered 2 exits: *Low x2) -7/Lower Caves -7/Lower Caves -7/Data Miner -6/Proximity Caves -6/Factory (discovered 5 exits: *Fac / *Low x2 / *Ext x2) -6/Lower Caves -6/Lower Caves -6/Zion -6/Deep Caves -5/Proximity Caves -5/Factory (discovered 4 exits: *Fac x2 / Upp x2) -5/Waste -5/Factory (discovered 4 exits: *Fac x2 / *Upp x2) -5/Upper Caves -5/Upper Caves (discovered 2 exits: *Fac / *War) -5/Warlord -4/Proximity Caves -4/Factory -4/Waste -4/Factory (discovered 6 exits: *Res x2 / Upp x2 / Arm / Gar) -4/Garrison -4/Factory (discovered 3 exits: *Upp x2 / Arm) -4/Upper Caves -4/Upper Caves -4/Zhirov -3/Proximity Caves -3/Research (discovered 3 exits: Res / *Tes x2) -3/Testing -3/Garrison -2/Research (discovered 2 exits: *Qua x2) -2/Quarantine -1/Access -1/Command 0b11 Command History --------- Turn | Location | Event 5 | -11/Scrapyard | Discovered new exit (range 16) 96 | -11/Scrapyard | Entered Materials 215 | -10/Materials | Discovered new exit (range 13) 226 | -10/Materials | Entered another Materials area 226 | -9/Materials | Evolved 2 slots: Utility x2 243 | -9/Materials | Lost 4 parts (1p3w) 312 | -9/Materials | Build established: Mutant 884 | -9/Materials | Discovered new exit (range 3) 1098 | -9/Materials | Build established: Hauler-Mutant 1327 | -9/Materials | Discovered new exit (range 12) 1335 | -9/Materials | Core integrity fell below 50% 1619 | -9/Materials | Identified exit to Mines 1619 | -9/Materials | Identified exit to Storage 1741 | -9/Materials | Entered Mines 1847 | -9/Mines | Discovered new exit (range 12) 1885 | -9/Mines | Deemed a non-threat by the Exiles lab entrance 1887 | -9/Mines | Discovered new exit (range 5) 1895 | -9/Mines | Entered Exiles 1895 | -9/Exiles | Found Exiles lab destroyed 2070 | -9/Exiles | Learned location of Zion (-6) 2592 | -9/Exiles | Discovered new exit (range 10) 2611 | -9/Exiles | Entered Mines 2611 | -8/Mines | Accompanied by 3 allies 2728 | -8/Mines | Discovered new exit (range 5) 2746 | -8/Mines | Entered Materials 2746 | -8/Materials | Accompanied by 3 allies 2746 | -8/Materials | Evolved 2 slots: Propulsion x1, Utility x1 3805 | -8/Materials | Discovered new exit (range 3) 4102 | -8/Materials | Discovered new exit (range 16) 4467 | -8/Materials | Entered Factory 4467 | -7/Factory | Evolved 2 slots: Propulsion x1, Utility x1 4655 | -7/Factory | Central database locked down 4655 | -7/Factory | Identified exit to Lower Caves 4795 | -7/Factory | Fabricated Imp. Flight Unit (x1) 4846 | -7/Factory | Fabricated Imp. Flight Unit (x1) 4895 | -7/Factory | Entered Lower Caves 4943 | -7/Lower Caves | Discovered new exit (range 12) 4944 | -7/Lower Caves | Learned location of Extension (-6) 4947 | -7/Lower Caves | Identified exit to Lower Caves 4951 | -7/Lower Caves | Entered another Lower Caves area 5100 | -7/Lower Caves | Spotted B-75 Beast 5114 | -7/Lower Caves | Discovered new exit (range 4) 5115 | -7/Lower Caves | Identified exit to Data Miner 5117 | -7/Lower Caves | Entered Data Miner 5117 | -7/Data Miner | Discovered new exit (range 6) 5124 | -7/Data Miner | Met Data Miner 5134 | -7/Data Miner | Learned location of Section 7 (-2) 5134 | -7/Data Miner | Acquired the access code to Warlord's prototype stash 5136 | -7/Data Miner | Received God Mode back door access code from Data Miner 5140 | -7/Data Miner | Destroyed Data Miner 5142 | -7/Data Miner | Found Prototype Hackware 5149 | -7/Data Miner | Data Conduit disabled 5158 | -7/Data Miner | Build established: Hacker-Sprinter 5190 | -7/Data Miner | Identified exit to Proximity Caves 5191 | -7/Data Miner | Entered Proximity Caves 5365 | -6/Proximity Caves | Discovered new exit (range 10) 5368 | -6/Proximity Caves | Identified exit to Factory 5368 | -6/Proximity Caves | Entered Factory 5368 | -6/Factory | Evolved 2 slots: Power x1, Utility x1 5378 | -6/Factory | Identified Quantum Router 5443 | -6/Factory | Fabricated Lrn. Sensor Array (x1) 5589 | -6/Factory | Central database locked down 5593 | -6/Factory | Identified exit to Lower Caves 5593 | -6/Factory | Identified exit to Extension 5679 | -6/Factory | Fabricated Nuclear Pulse Array (x2) 5735 | -6/Factory | Discovered new exit (range 13) 5738 | -6/Factory | Identified exit to Factory 5845 | -6/Factory | Fabricated Combat Drone Bay (x1) 5965 | -6/Factory | Fabricated Combat Drone Bay (x1) 6015 | -6/Factory | Repaired Mni. Grenade Launcher 6066 | -6/Factory | Entered Lower Caves 6066 | -6/Lower Caves | Accompanied by 1 ally 6123 | -6/Lower Caves | Spotted B-75 Beast 6767 | -6/Lower Caves | Discovered new exit (range 15) 6772 | -6/Lower Caves | Identified exit to Lower Caves 6772 | -6/Lower Caves | Entered another Lower Caves area 6787 | -6/Lower Caves | Encountered a Warlord checkpoint 6831 | -6/Lower Caves | Discovered new exit (range 15) 6835 | -6/Lower Caves | Identified exit to Zion 6835 | -6/Lower Caves | Entered Zion 6856 | -6/Zion | Found CR-A16's Pointy Stick 6886 | -6/Zion | Found Prototype Device 7004 | -6/Zion | Discovered new exit (range 3) 7007 | -6/Zion | Identified exit to Deep Caves 7007 | -6/Zion | Saw the warning signs outside the Deep Caves entrance 7015 | -6/Zion | Entered Deep Caves 7075 | -6/Deep Caves | Z-Facility disabled 7105 | -6/Deep Caves | Attacked by Z-Imprinter 7123 | -6/Deep Caves | Allies destroyed Z-Imprinter 7124 | -6/Deep Caves | Found Prototype Device 7124 | -6/Deep Caves | Identified Zio. Metafield Generator 7176 | -6/Deep Caves | Found Prototype Protection 7176 | -6/Deep Caves | Identified Zio. Weapon Casing 7462 | -6/Deep Caves | Identified Bomb Factory No. 2 7483 | -6/Deep Caves | Build established: Hacker-Mutant 8078 | -6/Deep Caves | Spotted as-45172 8228 | -6/Deep Caves | Discovered new exit (range 15) 8350 | -6/Deep Caves | Destroyed as-45172 8381 | -6/Deep Caves | Exposed GOLEM chamber 8397 | -6/Deep Caves | Found GOLEM Unit 9490 | -6/Deep Caves | Identified exit to Proximity Caves 9491 | -6/Deep Caves | Entered Proximity Caves 9589 | -5/Proximity Caves | Spotted B-75 Beast 9599 | -5/Proximity Caves | Revealed the true nature of CR-A16's Pointy Stick 9603 | -5/Proximity Caves | Allies destroyed B-75 Beast 9626 | -5/Proximity Caves | Learned Factory garrison access intel 9688 | -5/Proximity Caves | Discovered exit to Factory (range 19) 9719 | -5/Proximity Caves | Entered Factory 9719 | -5/Factory | Evolved 2 slots: Utility x2 9720 | -5/Factory | Loaded intel: 4 garrison access locations 10247 | -5/Factory | Fabricated Adv. Hacking Suite (x1) 10275 | -5/Factory | Fabricated Adv. Hacking Suite (x1) 10296 | -5/Factory | Fabricated Lrn. Sensor Array (x1) 10399 | -5/Factory | Fabricated Lrg. Storage Unit (x1) 10557 | -5/Factory | Identified exit to Upper Caves 10564 | -5/Factory | Discovered new exit (range 4) 10565 | -5/Factory | Identified exit to Factory 10619 | -5/Factory | First assault squad dispatched 10707 | -5/Factory | Discovered exit to Factory (range 16) 11307 | -5/Factory | Fabricated Combat Drone Bay (x1) 11391 | -5/Factory | Fabricated Combat Drone Bay (x1) 11599 | -5/Factory | Local fabrication network quarantined 11678 | -5/Factory | Manually triggered Chute Trap 11678 | -5/Factory | Sucked down chute 11678 | -5/Factory | Entered Waste 11680 | -5/Waste | Spotted C-40 Crusher 11680 | -5/Waste | Spotted C-40 Crusher 11681 | -5/Waste | Spotted C-40 Crusher 11683 | -5/Waste | Spotted C-40 Crusher 11689 | -5/Waste | Discovered new exit (range 16) 11692 | -5/Waste | Identified exit to Factory 11692 | -5/Waste | Entered Factory 11705 | -5/Factory | 2 allies followed down the chute 11863 | -5/Factory | Discovered exit to Factory (range 5) 12202 | -5/Factory | Fabricated Powered Armor? 12420 | -5/Factory | Fabricated Cmb. Gravmag System? 12713 | -5/Factory | Discovered exit to Factory (range 8) 12752 | -5/Factory | Fabricated Hcp. Storage Unit (x1) 12892 | -5/Factory | First assault squad dispatched 12936 | -5/Factory | Fabricated Imp. Linear Gravjet (x2) 13114 | -5/Factory | Fabricated Cmb. Gravmag System? 13143 | -5/Factory | Entered Upper Caves 13143 | -5/Upper Caves | Accompanied by 2 allies 13147 | -5/Upper Caves | Learned Factory terminal intel 13241 | -5/Upper Caves | Encountered a Warlord checkpoint 13298 | -5/Upper Caves | Discovered new exit (range 17) 13311 | -5/Upper Caves | Identified exit to Upper Caves 13318 | -5/Upper Caves | Entered another Upper Caves area 13318 | -5/Upper Caves | Accompanied by 6 allies 13333 | -5/Upper Caves | Identified exit to Warlord 13350 | -5/Upper Caves | Learned Factory terminal intel 13365 | -5/Upper Caves | Discovered exit to Factory (range 5) 13504 | -5/Upper Caves | Entered Warlord 13504 | -5/Warlord | Accompanied by 2 allies 13533 | -5/Warlord | System corruption cleaned by Quarantine Array 13580 | -5/Warlord | Met Warlord 13605 | -5/Warlord | Warlord's base attacked by MAIN.C 13624 | -5/Warlord | Found Prototype Reactor 13693 | -5/Warlord | Opened side exit 13702 | -5/Warlord | Discovered new exit (range 13) 13705 | -5/Warlord | Identified exit to Proximity Caves 13708 | -5/Warlord | Entered Proximity Caves 13708 | -4/Proximity Caves | Accompanied by 4 allies 13826 | -4/Proximity Caves | Learned Research security intel 13853 | -4/Proximity Caves | Discovered exit to Factory (range 22) 13945 | -4/Proximity Caves | Learned location of 1 exit from Proximity Caves 13968 | -4/Proximity Caves | Entered Factory 13968 | -4/Factory | Accompanied by 6 allies 13968 | -4/Factory | Evolved 2 slots: Utility x2 13969 | -4/Factory | Loaded intel: 20 terminal locations 14246 | -4/Factory | First assault squad dispatched 14430 | -4/Factory | Build established: Wizard-Mutant 14594 | -4/Factory | Spotted B-86 Titan 14603 | -4/Factory | Destroyed B-86 Titan 14656 | -4/Factory | Fabricated Cmb. Linear Gravjet (x2) 14695 | -4/Factory | Fabricated Cmb. Linear Gravjet (x2) 14729 | -4/Factory | Fabricated Cmb. Linear Gravjet? 14746 | -4/Factory | Fabricated Hcp. Storage Unit (x1) 14829 | -4/Factory | Spotted B-86 Titan 14829 | -4/Factory | Destroyed B-86 Titan 15064 | -4/Factory | Fabricated Combat Drone Bay (x1) 15111 | -4/Factory | Fabricated Tactical Coordination Suite (x1) 15165 | -4/Factory | Sucked down chute 15165 | -4/Factory | Entered Waste 15167 | -4/Waste | Spotted C-40 Crusher 15168 | -4/Waste | Spotted C-40 Crusher 15170 | -4/Waste | Spotted C-40 Crusher 15173 | -4/Waste | Spotted C-40 Crusher 15179 | -4/Waste | Spotted C-40 Crusher 15180 | -4/Waste | EMP discharged 15181 | -4/Waste | Discovered new exit (range 10) 15185 | -4/Waste | Identified exit to Factory 15190 | -4/Waste | Entered Factory 15191 | -4/Factory | Loaded intel: 20 terminal locations 15335 | -4/Factory | 6 allies followed down the chute 15577 | -4/Factory | Fabricated Combat Drone Bay? 15625 | -4/Factory | Identified exit to Upper Caves 15625 | -4/Factory | Identified exit to Armory 15751 | -4/Factory | Fabricated Combat Drone Bay? 15772 | -4/Factory | Fabricated Combat Drone Bay? 15803 | -4/Factory | Fabricated Combat Drone Bay? 15864 | -4/Factory | Discovered new exit (range 20) 15894 | -4/Factory | Local fabrication network quarantined 15894 | -4/Factory | Spotted B-86 Titan 15895 | -4/Factory | Destroyed B-86 Titan 15940 | -4/Factory | First assault squad dispatched 16319 | -4/Factory | Discovered new exit (range 22) 16362 | -4/Factory | High security lockdown imminent 16375 | -4/Factory | Identified exit to Garrison 16385 | -4/Factory | Entered Garrison 16385 | -4/Garrison | Accompanied by 4 allies 16405 | -4/Garrison | Spotted B-86 Titan 16406 | -4/Garrison | Triggered checkpoint 16410 | -4/Garrison | Destroyed B-86 Titan 16416 | -4/Garrison | Triggered checkpoint 16420 | -4/Garrison | Triggered checkpoint 16422 | -4/Garrison | Triggered checkpoint 16439 | -4/Garrison | Discovered new exit (range 20) 16450 | -4/Garrison | Identified exit to Factory 16453 | -4/Garrison | Installed Relay Interface Framework 16462 | -4/Garrison | Entered Factory 16462 | -4/Factory | Accompanied by 4 allies 16621 | -4/Factory | Found Prototype Hackware 16621 | -4/Factory | Identified Exp. Hacking Suite 16642 | -4/Factory | Garrison activated, responded to threat 16694 | -4/Factory | Fabricated Mni. Fusion Reactor (x1) 16790 | -4/Factory | Fabricated Mni. Fusion Reactor (x1) 17044 | -4/Factory | Fabricated Combat Drone Bay (x1) 17129 | -4/Factory | Fabricated Combat Drone Bay (x1) 17214 | -4/Factory | Entered Upper Caves 17214 | -4/Upper Caves | Accompanied by 6 allies 17367 | -4/Upper Caves | Learned Research interactive machine intel 17385 | -4/Upper Caves | Discovered new exit (range 9) 17389 | -4/Upper Caves | Identified exit to Upper Caves 17392 | -4/Upper Caves | Entered another Upper Caves area 17392 | -4/Upper Caves | Accompanied by 6 allies 17453 | -4/Upper Caves | Learned location of Testing (-3) 17464 | -4/Upper Caves | Spotted B-86 Titan 17467 | -4/Upper Caves | Destroyed B-86 Titan 17482 | -4/Upper Caves | Learned location of 1 exit from Research 17514 | -4/Upper Caves | Discovered new exit (range 13) 17520 | -4/Upper Caves | Identified exit to Zhirov 17521 | -4/Upper Caves | Entered Zhirov 17521 | -4/Zhirov | Accompanied by 4 allies 17521 | -4/Zhirov | Discovered new exit (range 3) 17530 | -4/Zhirov | Met Zhirov 17542 | -4/Zhirov | Learned location of Quarantine (-2) 17542 | -4/Zhirov | Learned location of Command (-1) 17546 | -4/Zhirov | Zhirov requested help retrieving the SGEMP Prototype 17594 | -4/Zhirov | Found Alien Artifact 17594 | -4/Zhirov | Identified Integrated Reactor 17594 | -4/Zhirov | Installed Integrated Reactor, increased core energy generation (+10) 17626 | -4/Zhirov | Identified exit to Proximity Caves 17629 | -4/Zhirov | Entered Proximity Caves 17629 | -3/Proximity Caves | Accompanied by 4 allies 17630 | -3/Proximity Caves | Identified exit to Research 17852 | -3/Proximity Caves | Entered Research 17852 | -3/Research | Accompanied by 4 allies 17852 | -3/Research | Evolved 2 slots: Propulsion x1, Utility x1 17853 | -3/Research | Identified exit to Research 17855 | -3/Research | Loaded intel: 37 interactive machine locations 17856 | -3/Research | Identified Vortex Chain Reactor 17944 | -3/Research | Identified exit to Testing 17955 | -3/Research | Allied Derelicts emerged from ambush trap array 18406 | -3/Research | Fabricated Assault Drone Bay (x1) 18468 | -3/Research | Fabricated Assault Drone Bay (x1) 18489 | -3/Research | Entered Testing 18489 | -3/Testing | Accompanied by 3 allies 18526 | -3/Testing | Found Prototype Device 18526 | -3/Testing | Identified AEGIS Remote Shield 18564 | -3/Testing | Identified exit to Garrison 18564 | -3/Testing | Entered Garrison 18564 | -3/Garrison | Accompanied by 3 allies 18602 | -3/Garrison | Triggered checkpoint 18610 | -3/Garrison | Garrison Relay disabled 18662 | -3/Garrison | Spotted B-86 Titan 18689 | -3/Garrison | Destroyed B-86 Titan 18694 | -3/Garrison | Triggered checkpoint 18748 | -3/Garrison | Discovered exit to Research (range 12) 18755 | -3/Garrison | Expanded RIF knowledge: Patrol Navigation 18758 | -3/Garrison | Entered Research 18758 | -2/Research | Accompanied by 4 allies 18758 | -2/Research | Warlord forces began assault on 0b10 18758 | -2/Research | Evolved 2 slots: Utility x2 18778 | -2/Research | Identified exit to Quarantine 18819 | -2/Research | Adv. Hacking Suite fried by hacking feedback 18826 | -2/Research | Borebot progress halted 18868 | -2/Research | Research machine network offline 18993 | -2/Research | Met up with Warlord 19089 | -2/Research | Borebot progress halted 19199 | -2/Research | Entered Quarantine 19199 | -2/Quarantine | Accompanied by 2 allies 19396 | -2/Quarantine | Found Alien Artifact 19398 | -2/Quarantine | Identified exit to Access 19453 | -2/Quarantine | Entered Access 19453 | -1/Access | Accompanied by 2 allies 19453 | -1/Access | Evolved 2 slots: Utility x2 19595 | -1/Access | Fabricated Spread Laser (x2) 19657 | -1/Access | Fabricated Assault Drone Bay (x1) 19729 | -1/Access | Identified exit to Command 19811 | -1/Access | Garrison activated, responded to threat 19953 | -1/Access | First assault squad dispatched 19988 | -1/Access | Spotted B-99 Colossus 19988 | -1/Access | Destroyed B-99 Colossus 20131 | -1/Access | Fabricated Assault Drone Bay? 20306 | -1/Access | Fabricated Assault Drone Bay (x1) 20363 | -1/Access | Fabricated Assault Drone Bay (x1) 20809 | -1/Access | Spotted B-99 Colossus 20809 | -1/Access | Destroyed B-99 Colossus 21089 | -1/Access | Fabricated Assault Drone Bay (x1) 21168 | -1/Access | Fabricated Assault Drone Bay (x1) 21197 | -1/Access | Garrison activated, responded to threat 21498 | -1/Access | Spotted B-99 Colossus 21498 | -1/Access | Spotted B-99 Colossus 21500 | -1/Access | Destroyed B-99 Colossus 21510 | -1/Access | Destroyed B-99 Colossus 21518 | -1/Access | Fabricated Assault Drone Bay? 21637 | -1/Access | Garrison activated, responded to threat 21654 | -1/Access | Local fabrication network quarantined 21657 | -1/Access | Maximum security lockdown engaged 25168 | -1/Access | Found GOLEM Unit 25607 | -1/Access | Destroyed Striker 25607 | -1/Access | Destroyed Striker 25607 | -1/Access | Destroyed Striker 25607 | -1/Access | Destroyed Striker 25607 | -1/Access | Destroyed Executioner 25607 | -1/Access | Destroyed Striker 25607 | -1/Access | Destroyed Striker 25607 | -1/Access | Destroyed Striker 25607 | -1/Access | Destroyed Executioner 25607 | -1/Access | Destroyed Executioner 25607 | -1/Access | Destroyed Executioner 25607 | -1/Access | Destroyed Striker 25607 | -1/Access | Destroyed Executioner 25628 | -1/Access | Destroyed 75 combat bots 26140 | -1/Access | Found GOLEM Unit 27545 | -1/Access | Found GOLEM Unit 30087 | -1/Access | Found GOLEM Unit 30299 | -1/Access | Found GOLEM Unit 30665 | -1/Access | Found GOLEM Unit 32207 | -1/Access | Destroyed Executioner 32207 | -1/Access | Destroyed Executioner 32207 | -1/Access | Destroyed Striker 32207 | -1/Access | Spotted Executioner 32207 | -1/Access | Destroyed Striker 32207 | -1/Access | Destroyed Striker 32207 | -1/Access | Destroyed Executioner 32207 | -1/Access | Destroyed Executioner 32207 | -1/Access | Destroyed Striker 32207 | -1/Access | Destroyed Striker 32207 | -1/Access | Destroyed Striker 32207 | -1/Access | Destroyed Executioner 32207 | -1/Access | Destroyed Striker 32207 | -1/Access | Destroyed Executioner 32207 | -1/Access | Destroyed Executioner 32207 | -1/Access | Destroyed Executioner 32207 | -1/Access | Destroyed Striker 32207 | -1/Access | Destroyed Striker 32207 | -1/Access | Destroyed Executioner 32207 | -1/Access | Destroyed Executioner 32207 | -1/Access | Destroyed Striker 32207 | -1/Access | Destroyed Striker 32209 | -1/Access | Destroyed Striker 32231 | -1/Access | Destroyed 57 combat bots 32328 | -1/Access | Found GOLEM Unit 32532 | -1/Access | Found GOLEM Unit 32785 | -1/Access | Found GOLEM Unit 32981 | -1/Access | Found GOLEM Unit 34514 | -1/Access | Found GOLEM Unit 35677 | -1/Access | Found GOLEM Unit 36096 | -1/Access | Found GOLEM Unit 37957 | -1/Access | Spotted Executioner 37957 | -1/Access | Spotted Striker 37957 | -1/Access | Spotted Striker 37957 | -1/Access | Spotted Striker 37957 | -1/Access | Spotted Executioner 37957 | -1/Access | Spotted Executioner 37957 | -1/Access | Destroyed Executioner 37957 | -1/Access | Destroyed Striker 37957 | -1/Access | Destroyed Executioner 37957 | -1/Access | Destroyed Striker 37957 | -1/Access | Destroyed Investigator 37957 | -1/Access | Destroyed Striker 37957 | -1/Access | Spotted Striker 37957 | -1/Access | Destroyed Executioner 37957 | -1/Access | Destroyed Executioner 37957 | -1/Access | Destroyed Executioner 37957 | -1/Access | Destroyed Striker 37957 | -1/Access | Destroyed Executioner 37957 | -1/Access | Destroyed Executioner 37957 | -1/Access | Destroyed Executioner 37957 | -1/Access | Destroyed Striker 37957 | -1/Access | Destroyed Striker 37958 | -1/Access | Destroyed Executioner 37996 | -1/Access | Destroyed 77 combat bots 38846 | -1/Access | Found GOLEM Unit 39881 | -1/Access | Found GOLEM Unit 40607 | -1/Access | Spotted Striker 40607 | -1/Access | Destroyed Executioner 40607 | -1/Access | Destroyed Striker 40607 | -1/Access | Destroyed Striker 40607 | -1/Access | Destroyed Striker 40607 | -1/Access | Destroyed Striker 40607 | -1/Access | Destroyed Striker 40607 | -1/Access | Destroyed Executioner 40607 | -1/Access | Destroyed Executioner 40607 | -1/Access | Destroyed Striker 40607 | -1/Access | Destroyed Striker 40607 | -1/Access | Destroyed Executioner 40607 | -1/Access | Destroyed Executioner 40607 | -1/Access | Destroyed Striker 40607 | -1/Access | Destroyed Striker 40607 | -1/Access | Destroyed Executioner 40607 | -1/Access | Destroyed Executioner 40607 | -1/Access | Destroyed Striker 40607 | -1/Access | Destroyed Executioner 40607 | -1/Access | Destroyed Executioner 40607 | -1/Access | Destroyed Executioner 40607 | -1/Access | Destroyed Striker 40607 | -1/Access | Destroyed Executioner 40607 | -1/Access | Destroyed Executioner 40608 | -1/Access | Destroyed Striker 40629 | -1/Access | Destroyed 65 combat bots 40654 | -1/Access | Entered Command 40677 | -1/Command | Phase Generator disabled 40711 | -1/Command | High security lockdown imminent 40746 | -1/Command | Spotted Combat Programmer 40791 | -1/Command | High security lockdown engaged 40794 | -1/Command | Met MAIN.C 40795 | -1/Command | 0b10 Conduit disabled 40807 | -1/Command | Allies destroyed MAIN.C Shell 40809 | -1/Command | MAIN.C activated Command garrisons 40817 | -1/Command | Spotted Combat Programmer 40817 | -1/Command | Spotted M Guard 40821 | -1/Command | Spotted M Guard 40833 | -1/Command | Destroyed MAIN.C 41320 | -1/Command | Build established: Machinist-Sprinter 41428 | -1/Command | Destroyed all MAIN.C guards 41690 | -1/Command | Found Prototype Protection 41690 | -1/Command | Identified Exp. Powered Armor 41692 | -1/Command | Found Exp. Powered Armor 41714 | -1/Command | Spotted B-99 Colossus 41725 | -1/Command | Destroyed B-99 Colossus 41767 | -1/Command | Discovered new exit (range 25) 41850 | *** | Establishing 0b11! Last Messages --------------- 41791_ Slug penetrates Earth. 41791_ Slug penetrates L-61 Swordsman. 41791_ L-61 Swordsman suffers critical hit. 41791_ Destroyed Lgt. Antimatter Reactor. 41791_ Slug penetrates Earth. 41791_ Slug penetrates L-61 Swordsman. 41791_ Slug penetrates Wall. 41791_ Slug penetrates Assault Drone. 41791_ Slug penetrates L-61 Swordsman. 41791_ L-61 Swordsman destroyed. 41791_ Slug penetrates Warlord KY-Z71. 41793_ Slug penetrates H-88 Terminator. 41795_ Slug penetrates Earth. 41796_ Slug penetrates H-88 Terminator. 41797_ Slug penetrates Assault Drone. 41797_ Slug penetrates Wall. 41797_ Slug penetrates H-88 Terminator. 41797_ H-88 Terminator destroyed. 41819_ Assault Drone retrieved by Assault Drone Bay. [Achievement: Commander 0b11] Map ----- +----------------------------------------------------+ | #####???????????#%=###?###?# ########??????? | | ????????##!!# ## ### # #??????? | | =???????# |[# # ## ## # #??????? | | % ######## = =/## # #??????? | | * **%%! =%## = # #??????? | | % !=% *!"= # #??????? | | ########### # #! %##+###+### #???#### | | ??????????##### # # ## * # #???#""" | | ????????????# # =% + #???#"" | | ????????????# + # #???#""" | | ????????????# "" # # #???#""" | | ????????????#! """" # # #???#" | | ????????????# """"%! # ####%# #???#"" | | ????????????# "" # #??# # #???#"" | | ????????????# # ######??# # #???# " | | ????????????# # #???????#!###+####???# " | | ????????????########### #???????#!#?# #??????# " | | ??????????????????????# #???????#%#?# #??????#""" | | ??????????????????????# #??######+### #??????#"" | | ??????????????????????# #??# ** !# #??????# | | ??????????????????????# #??# !# #??????# | | ??????????????????????# #??# "" ![# ######## | | ??????????????????????# #??# """"=%#[ *%! | | ??????????????????????# #### """"=!+%! ==! | | ??????????????????????# n ## "" |[#[ | | ??????????????????????# @ ## # ########= | | ??????????????????????# n## # #??????#[* | | ??????????????????????####### # #??????#%= | | ????????????????????????????########## #??????#### | | ?????????????????????????????????????# #?????????? | | ?????????????????????????????????????# #?????????? | | ?????????????????????????????????????# #?????????? | | ?????????????????????????????????????# #?????????? | | ?????????????????????????????????????# #?????????? | | ??????????????????????????????????#### #?????????? | | ??????????????????????????????????# #?????????? | | ??????????????????????????????????# #?????????? | | ??????????????????????????????????# #?????????? | | ??????????????????????????????????# #?????????? | | ??????????????????????????????????# #?????????? | | ??????????????????????????????????# #?????????? | | ??????????????????????????????????# #?????????? | | ??????????????????????????????????# #?????????? | | ??????????????????????????????????# #?????????? | | ??????????????????????????????????# #?????????? | | ??????????????????????????????????# #?????????? | | ??????????????????????????????????# #?????????? | | ?????????????????????????????????? #?????????? | | ??????????????????????????????????######?????????? | | ?????????????????????????????????????????????????? | +----------------------------------------------------+ Best States ------------- Heat Dissipation 52 Energy Generation 65 Energy Capacity 2700 Matter Stores 600 Matter Capacity 600 Sight Range 16 Robot Scan Range 22 Terrain Scan Density 10 Armor Coverage 1200 Evasion (%) 64 Recoil Reduction 3 Salvage Targeting 3 Offensive Hacking 64 Defensive Hacking 39 Item Schematics ----------------- Hcp. Storage Unit | -10/Materials | Hacked Mak. Hacking Suite | -8/Materials | Scanalyzed Imp. Flight Unit | -8/Materials | Hacked Spread Laser | -7/Factory | Hacked Combat Drone Bay | -7/Data Miner | Free Lgt. Regenerative Plating | -7/Data Miner | Free Exp. Flexi-carbon Leg | -7/Data Miner | Free Triangulator | -7/Data Miner | Free Tactical Coordination Suite | -7/Data Miner | Free Exp. Transmission Jammer | -7/Data Miner | Free Cloaking Device | -7/Data Miner | Free Lrn. Sensor Array | -6/Factory | Hacked Cmb. Airjet | -6/Lower Caves | Hacked Mic. Nuclear Core | -6/Lower Caves | Hacked Lrg. Storage Unit | -5/Factory | Hacked Adv. Hacking Suite | -5/Factory | Hacked Imp. Linear Gravjet | -5/Factory | Hacked Powered Armor | -5/Factory | Hacked Cmb. Gravmag System | -5/Factory | Hacked Enh. Nova Cannon | -4/Factory | Hacked Cmb. Linear Gravjet | -4/Factory | Hacked Hvy. Antimatter Reactor | -4/Factory | Hacked Exp. Energy Well | -4/Factory | Scanalyzed Mni. Fusion Reactor | -4/Factory | Hacked Assault Drone Bay | -4/Zhirov | Free Exp. Heat Sink | -4/Zhirov | Free Exp. Optical Array | -4/Zhirov | Free Imp. Arc Thrower | -4/Zhirov | Free Adv. Salvage Targeting Computer | -3/Research | Scanalyzed Robot Schematics ------------------ S-27 Virus | -7/Data Miner | Free G-50 Soldier | -7/Data Miner | Free L-41 Fighter | -7/Data Miner | Free X-72 Disruptor | -7/Data Miner | Free H-66 Slayer | -7/Data Miner | Free I-36 Angel | -7/Data Miner | Free A-15 Conveyor | -4/Factory | Hacked Fabricated ------------ Imp. Flight Unit | x1 | -7/Factory Imp. Flight Unit | x1 | -7/Factory Lrn. Sensor Array | x1 | -6/Factory Nuclear Pulse Array | x2 | -6/Factory | Preloaded Combat Drone Bay | x1 | -6/Factory Combat Drone Bay | x1 | -6/Factory Adv. Hacking Suite | x1 | -5/Factory Adv. Hacking Suite | x1 | -5/Factory Lrn. Sensor Array | x1 | -5/Factory Lrg. Storage Unit | x1 | -5/Factory Combat Drone Bay | x1 | -5/Factory Combat Drone Bay | x1 | -5/Factory Powered Armor | x2 | -5/Factory Cmb. Gravmag System | x2 | -5/Factory Hcp. Storage Unit | x1 | -5/Factory Imp. Linear Gravjet | x2 | -5/Factory Cmb. Gravmag System | x2 | -5/Factory Cmb. Linear Gravjet | x2 | -4/Factory Cmb. Linear Gravjet | x2 | -4/Factory Cmb. Linear Gravjet | x2 | -4/Factory Hcp. Storage Unit | x1 | -4/Factory Combat Drone Bay | x1 | -4/Factory Tactical Coordination Suite | x1 | -4/Factory Combat Drone Bay | x1 | -4/Factory Combat Drone Bay | x1 | -4/Factory Combat Drone Bay | x1 | -4/Factory Combat Drone Bay | x1 | -4/Factory Mni. Fusion Reactor | x1 | -4/Factory Mni. Fusion Reactor | x1 | -4/Factory Combat Drone Bay | x1 | -4/Factory Combat Drone Bay | x1 | -4/Factory Assault Drone Bay | x1 | -3/Research Assault Drone Bay | x1 | -3/Research Spread Laser | x2 | -1/Access Assault Drone Bay | x1 | -1/Access Assault Drone Bay | x1 | -1/Access Assault Drone Bay | x1 | -1/Access Assault Drone Bay | x1 | -1/Access Assault Drone Bay | x1 | -1/Access Assault Drone Bay | x1 | -1/Access Assault Drone Bay | x1 | -1/Access Alien Tech Used ----------------- Integrated Reactor Achievements -------------- Commander 0b11 Guerrilla Style Shutout Challenges ------------ None Game ------ Seed LaserFluxInterrupter Manual? 0 Play Time 08:09:24 Cumulative 311.1 hours Start 2020.09.01 @ 21:04:59 End 2020.09.05 @ 02:25:27 Sessions 9 Manual Loads 0 Difficulty Rogue Special Mode None Game No. 202 Rogue 202 Adventurer 0 Explorer 0 Win Type 1 Total 9 Types 7/1/0/0/0/0/1 Lore% 81 Gallery% 91 Achievement% 74 Wizard Run 0 Options --------- ASCII 0 Keyboard 0 Movement Numpad Keybinds 0 Fullscreen 2 Font 18/SmallcapsGlow Map View 76x50 Tactical HUD 1 Map Filters NONE Filters NONE Steam X RUN: f00cfbf2-8464-4637-af19-84dd520e2383